Workbook

Sheet 1. Introduction
A1: ELC Expansion Plan - Finance Template
A2: Introduction
A4: Local authority name | B4: City of Edinburgh Council
A6: ELC Expansion Plan - Lead contact
A7: Name
A8: Contact email / phone number
A10: Finance Template - Lead contact
A11: Name
A12: Contact email / phone number
A14: Comments
A15: Rows 25-38 of worksheet 6 contain marginal costs associated with Buildings and Facilities Management.

Sheet 2. Key Results
A1: Uptake Population | C1: 2016/17 | D1: 2021/22 | E1: Movement
B2: 2's | C2: ='4. Input table'!C17 -> 432.8352 | D2: ='4. Input table'!H17 -> 1153.32 | E2: =D2-C2 -> 720.4848 | F2: =E2/C2 -> 1.664570719
B3: 3&4's | C3: ='4. Input table'!J17+'4. Input table'!Q17 -> 10152.8 | D3: ='4. Input table'!O17+'4. Input table'!V17 -> 9844.48 | E3: =D3-C3 -> -308.32 | F3: =E3/C3 -> -0.03036797731
B4: 5's | C4: ='4. Input table'!X17 -> 466.31 | D4: ='4. Input table'!AC17 -> 441.745 | E4: =D4-C4 -> -24.565 | F4: =E4/C4 -> -0.05267954794
C5: =SUM(C2:C4) -> 11051.9452 | D5: =SUM(D2:D4) -> 11439.545 | E5: =SUM(E2:E4) -> 387.5998 | F5: =E5/C5 -> 0.03507073126
A7: Type of Provision | C7: LA | D7: PP | E7: CM
B8: 2016/17
B9: 2's | C9: ='4. Input table'!C30 -> 0.8 | D9: ='4. Input table'!C31 -> 0.2 | E9: ='4. Input table'!C32 -> 0
B10: 3&4's | C10: ='4. Input table'!J30 -> 0.65 | D10: ='4. Input table'!J31 -> 0.35 | E10: ='4. Input table'!J32 -> 0
B11: 5's | C11: ='4. Input table'!X30 -> 0.6 | D11: ='4. Input table'!X31 -> 0.4 | E11: ='4. Input table'!X32 -> 0
B12: 2021/22 | K12: dropdown menu options to be made blank in final
B13: 2's | C13: ='4. Input table'!H30 -> 0.8 | D13: ='4. Input table'!H31 -> 0.19 | E13: ='4. Input table'!H32 -> 0.01 | K13: Excluded | L13: Included | N13: Same | O13: Different
B14: 3&4's | C14: ='4. Input table'!O30 -> 0.64 | D14: ='4. Input table'!O31 -> 0.35 | E14: ='4. Input table'!O32 -> 0.01
B15: 5's | C15: ='4. Input table'!AC30 -> 0.6 | D15: ='4. Input table'!AC31 -> 0.39 | E15: ='4. Input table'!AC32 -> 0.01
B16: Movement
B17: 2's | C17: =C13-C9 -> 0 | D17: =D13-D9 -> -0.01 | E17: 0.01
B18: 3&4's | C18: =C14-C10 -> -0.01 | D18: =D14-D10 -> 0 | E18: 0.01
B19: 5's | C19: =C15-C11 -> 0 | D19: =D15-D11 -> -0.01 | E19: 0.01
B21: Cost of 1 Hour of ELC in LA Settings | C21: 2016-17 | D21: 2021-22 | E21: Movement
C22: =(('6. Revenue costs profile'!J12+'6. Revenue costs profile'!J44)*1000000)/('4. Input table'!C36+'4. Input table'!J36+'4. Input table'!X36) -> 5.460127025 | D22: =(('6. Revenue costs profile'!O12+'6. Revenue costs profile'!O44)*1000000)/('4. Input table'!H36+'4. Input table'!O36+'4. Input table'!AC36) -> 6.320464765 | E22: =(D22-C22)/C22 -> 0.1575673489
A24: Partner Rates | C24: 2016/17 | D24: 2021/22 | E24: Movement | F24: LW | G24: CM
B25: 2's | C25: ='4. Input table'!C41 -> 3.6 | D25: ='4. Input table'!H41 -> 5.31 | E25: =D25-C25 -> 1.71 | F25: Included | G25: Same
B26: 3&4's | C26: ='4. Input table'!J41 -> 3.6 | D26: ='4. Input table'!O41 -> 5.31 | E26: =D26-C26 -> 1.71
B27: 5's | C27: ='4. Input table'!X41 -> 3.6 | D27: ='4. Input table'!AC41 -> 5.31 | E27: =D27-C27 -> 1.71
A29: Estimated Revenue | B29: Now | C29: 2016/17 | D29: ='6. Revenue costs profile'!J46 -> 29.95399165 | E29: m | F29: Lunches | G29: Interim Years
B30: In | C30: 2021/22 | D30: ='6. Revenue costs profile'!O46 -> 76.31361641 | E30: m | F30: Excluded | G30: Excluded
C31: Increase | D31: =D30-D29 -> 46.35962476 | E31: m
A32: Estimated Capital | C32: Total | D32: ='7. Capital Costs Profile'!G14 -> 39.3866351 | E32: m | F32: 2017/18 | G32: Breakdown
F33: Included | G33: Excluded
A34: Ratio-Committed Staff Productivity | C34: 2016/17 | D34: 2021/22 | E34: Movement
B35: Hours delivered per FTE Ratio-Committed Staff (Indicative) | C35: =('4. Input table'!C36+'4. Input table'!J36+'4. Input table'!X36)/(SUMIF('5. Staffing costs profile'!$C$7:$C$33,"Ratio",'5. Staffing costs profile'!I7:I33)) -> 7597.201415 | D35: =('4. Input table'!H36+'4. Input table'!O36+'4. Input table'!AC36)/(SUMIF('5. Staffing costs profile'!C7:C33,"Ratio",'5. Staffing costs profile'!N7:N33)) -> 8539.221753 | E35: =(D35-C35)/C35 -> 0.123995704
A37: Proposed LA Capacity to Child Ratio | C37: Current | D37: Proposed | F37: Minimum Hours Required
B38: Total Physical LA Capacity | C38: ='8. Summary Demand and Supply'!C29 -> 4096 | D38: ='8. Summary Demand and Supply'!J29 -> 6413 | F38: LA | G38: ='4. Input table'!H36+'4. Input table'!O36+'4. Input table'!AC36 -> 7765968.876
B39: Children in LA Prov | C39: ='8. Summary Demand and Supply'!D29 -> 6750 | D39: ='8. Summary Demand and Supply'!K29 -> 8635 | F39: PP | G39: ='4. Input table'!H37+'4. Input table'!O37+'4. Input table'!AC37 -> 3952764.579
B40: Ratio : 1 | C40: =C39/C38 -> 1.647949219 | D40: =D39/D38 -> 1.346483705 | F40: CM | G40: ='4. Input table'!H38+'4. Input table'!O38+'4. Input table'!AC38 -> 118371.045
G41: =SUM(G38:G40) -> 11837104.5
F43: If LA capacity open 1140 hours - total hours available | G43: =D38*1140 -> 7310820
F44: If LA capacity open 2500 hours - total hours available | G44: =D38*2500 -> 16032500

Sheet 3. Questionnaire
A2: ELC 1140 hours expansion planning – Finance Templates V2 supporting questionnaire
A3: The finance template is, by necessity, relatively simple and will inevitably only partially capture the complexity of the expansion planning process and the information which local authorities wish to provide. This short questionnaire focuses on some of the key assumptions which will contribute to the cost of the expansion and allows you to explain the quantitative results which you have provided in the spreadsheet template. Please answer as fully as possible. You can also add any other supporting information which you think might be helpful. If you prefer, you can enter this information in a word document and attach to your submission.
A4: Flexibility
A6: 1 | B6: How is the requirement to provide a flexible ELC offer captured in your finance template? For example, how does it affect your anticipated workforce and capital requirements and how does it affect your costs?
B7: The number of local authority settings open all year round will increase from 17 to 43 and all of these will be open between 8.00am and 6.00pm. 20 all year round settings will be dependent on capital funding. 119 FTE Early Years Assistants will be recruited to support holiday cover in all year round settings.
A19: Workforce
A21: 2 | B21: How have you calculated your anticipated requirement for ratio-committed staff? Can you detail what assumptions you make about the time available to ratio-committed staff to actually spend delivering ELC to children. In particular how much time (days or %) would you expect staff on average to spend on: - holidays - sickness - training - other non-contact time - contact time (%) (in the national funding model we assume around 80%)
B22: Structures have been created to ensure holiday cover can be managed within each establishments core allocation. Holiday entitlement varies from 4.4 weeks to 13 weeks dependant on post and length of service. The budget for sickness cover has been increased on a pro-rata phased basis in line wih the increases in total FTE employed. An additional Early Years Practitioner allocation of 0.22 FTE to cover non-contact time has been allocated for each additional Teaching FTE. A Peripateic EYP team will be created to supplement core staffing as and where required.
A33: 3 | B33: On average, due to staggered starts after the child’s birthday, three year olds will receive around 75% of the full entitlement. How is this accounted for in your workforce estimates (in the national funding model we assume that this allows for a reduced staff component)?
B34: Since the increase from 475 to 600 hours, Edinburgh early years settings have been staffed according to intake and child:staff ratio requirements. This is allocated on a termly basis August, January and March/April. Attendance figures indicate a full year average uptake of 78%.
A40: 4 | B40: How have you calculated your anticipated requirement for non-ratio committed staff , for example managers and specialists (in the national funding model we work on a ratio of 0.8 FTE per setting)?
B41: Managers (settings) are out of ratio. Senior Early Years Officers are in ratio 0.5. All year round provision requires two Senior Early Years Officers.
A49: 5 | B49: How have you calculated your anticipated requirement for central staff (ie staff contributing to the provision of the funded entitlement but not involved in direct delivery within settings)?
B50: The expansion will require a significant increase in input from the central early years team working closely with all other relevant council departments to support delivery. Due to the scale of the expansion this will be the key remit of a Senior Officer along with the allocation of staff to support the day to day administration of the programme e.g. clerical and systems support. A pro-rata increase based on current provision has been applied to admin staff allocations for establishments moving to year round provision. Additional staff for Quality Assurance, Admin support (e.g. payments to Partner Providers) and Central Management have also been driven by a pro-rata comparison of current demand to expected future demand.
A59: Population and uptake
A60: 6 | B60: How have you calculated population estimates?
B61: We have used actual birth figures in primary catchment areas and a proportion of pupil generation in primary catchment areas from known housing development forecast to be delivered in the Plan period and identified in the Council’s Housing Land Audit 2017.
A62: 7 | B62: How have you estimated future uptake by 2 year olds (in the national funding model we assume an uptake of 50% nationally. Further info on local authority estimates of eligibility and uptake is provided at annex C of the Guidance Note)?
B63: Using our experience of the uptake of 4 years olds then 3 year old places when these were introduced, we predict that whilst uptake will be slow initially, this will increase to almost all once the provision is more widely publicised and there is an increased awareness of this entitlement amongst parents.
A66: Lunches and other costs
A67: 8 | B67: How have you calculated lunch unit cost (in the national funding model wwe use a figure of £3.00 based on the cost of lunches in P1-P3)?
B68: We have calculated lunch unit costs at £3.00 in line with the national funding model .
A69: 9 | B69: How have you estimated running costs? For example, have you assumed an increase that is more or less than proportional to the scale of the expansion? How does it link to you infrastructure plans/
B70: Each category of Premises and running cost calculations have considered whether the costs are fixed or whether they will vary either with an increase in number of children (e.g. educational supplies), increases in floor area (e.g. cleaning) or an increase in opening hours (e.g. utilities).
A74: Please use this space below to add further information and clarification which can help us to interpret the financial information that you have provided

Sheet 4. Input table
A1: ELC Expansion Plan - Finance Template
A2: Input sheet
A3: ='1. Introduction'!B4 -> City of Edinburgh Council
C4: 2016-17 | D4: 2017-18 | E4: 2018-19 | F4: 2019-20 | G4: 2020-21 | H4: 2021-22 | J4: 2016-17 | K4: 2017-18 | L4: 2018-19 | M4: 2019-20 | N4: 2020-21 | O4: 2021-22 | Q4: 2016-17 | R4: 2017-18 | S4: 2018-19 | T4: 2019-20 | U4: 2020-21 | V4: 2021-22 | X4: 2016-17 | Y4: 2017-18 | Z4: 2018-19 | AA4: 2019-20 | AB4: 2020-21 | AC4: 2021-22
A6: Lunches | C6: All
A7: Uptake | C7: 0 | D7: 190000 | E7: 427500 | F7: 950000 | G7: 2067770 | H7: 1870451.2
A8: Unit cost (£) | C8: 3 | D8: 3 | E8: 3 | F8: 3 | G8: 3 | H8: 3
A10: Uptake | C10: 2 year olds | J10: 3 year olds | Q10: 4 year olds | X10: 5 year olds (deferrals)
A11: Total population | C11: 5424 | D11: 5311 | E11: 5247 | F11: 5352 | G11: 5416 | H11: 5492 | J11: 5510 | K11: 5469 | L11: 5316 | M11: 5256 | N11: 5358 | O11: 5416 | Q11: 5593 | R11: 5555 | S11: 5474 | T11: 5325 | U11: 5263 | V11: 5358 | X11: 5486 | Y11: 5593 | Z11: 5510 | AA11: 5424 | AB11: 5266 | AC11: 5197
A12: Estimated eligible cohort (% of population) | C12: 0.21 | D12: 0.21 | E12: 0.21 | F12: 0.21 | G12: 0.21 | H12: 0.21 | J12: 1 | K12: 1 | L12: 1 | M12: 1 | N12: 1 | O12: 1 | Q12: 1 | R12: 1 | S12: 1 | T12: 1 | U12: 1 | V12: 1 | X12: 0.17 | Y12: 0.17 | Z12: 0.17 | AA12: 0.17 | AB12: 0.17 | AC12: 0.17
A13: Estimated uptake - registrations (% of the eligible population) | C13: 0.38 | D13: 0.42 | E13: 0.5 | F13: 0.75 | G13: 1 | H13: 1 | J13: 0.78 | K13: 0.78 | L13: 0.78 | M13: 0.78 | N13: 0.78 | O13: 0.78 | Q13: 1 | R13: 1 | S13: 1 | T13: 1 | U13: 1 | V13: 1 | X13: 0.5 | Y13: 0.5 | Z13: 0.5 | AA13: 0.5 | AB13: 0.5 | AC13: 0.5
A14: Estimated cross boundary - Gross in | Q14: 262 | R14: 262 | S14: 262 | T14: 262 | U14: 262 | V14: 262
A15: Estimated cross boundary - Gross out
A16: Estimated net cross boundary | C16: =C14-C15 -> 0 | D16: =D14-D15 -> 0 | E16: 0 | F16: 0 | G16: 0 | H16: 0 | J16: =J14-J15 -> 0 | K16: =K14-K15 -> 0 | L16: =L14-L15 -> 0 | M16: =M14-M15 -> 0 | N16: =N14-N15 -> 0 | O16: =O14-O15 -> 0 | Q16: =Q14-Q15 -> 262 | R16: =R14-R15 -> 262 | S16: =S14-S15 -> 262 | T16: =T14-T15 -> 262 | U16: =U14-U15 -> 262 | V16: =V14-V15 -> 262 | X16: =X14-X15 -> 0 | Y16: =Y14-Y15 -> 0 | Z16: =Z14-Z15 -> 0 | AA16: =AA14-AA15 -> 0 | AB16: =AB14-AB15 -> 0 | AC16: =AC14-AC15 -> 0
A17: Uptake (number of children) | C17: =(C11*C12*C13)+C16 -> 432.8352 | D17: =(D11*D12*D13)+D16 -> 468.4302 | E17: 550.935 | F17: 842.94 | G17: 1137.36 | H17: 1153.32 | J17: =(J11*J12*J13)+J16 -> 4297.8 | K17: =(K11*K12*K13)+K16 -> 4265.82 | L17: 4146.48 | M17: 4099.68 | N17: 4179.24 | O17: =(O11*O12*O13)+O16 -> 4224.48 | Q17: =(Q11*Q12*Q13)+Q16 -> 5855 | R17: =(R11*R12*R13)+R16 -> 5817 | S17: =(S11*S12*S13)+S16 -> 5736 | T17: =(T11*T12*T13)+T16 -> 5587 | U17: =(U11*U12*U13)+U16 -> 5525 | V17: =(V11*V12*V13)+V16 -> 5620 | X17: =(X11*X12*X13)+X16 -> 466.31 | Y17: =(Y11*Y12*Y13)+Y16 -> 475.405 | Z17: 468.35 | AA17: 461.04 | AB17: 447.61 | AC17: =(AC11*AC12*AC13)+AC16 -> 441.745
A18: Estimated uptake of hours (%) | C18: 1 | D18: 1 | E18: 1 | F18: 1 | G18: 1 | H18: 1 | J18: 1 | K18: 1 | L18: 1 | M18: 1 | N18: 1 | O18: 1 | Q18: 1 | R18: 1 | S18: 1 | T18: 1 | U18: 1 | V18: 1 | X18: 1 | Y18: 1 | Z18: 1 | AA18: 1 | AB18: 1 | AC18: 1
A19: Statutory provision (hours) | C19: 600 | D19: 600 | E19: 600 | F19: 600 | G19: 970 | H19: 1140 | J19: =Q19*0.75 -> 450 | K19: =R19*0.75 -> 450 | L19: 450 | M19: =T19*0.75 -> 450 | N19: 727.5 | O19: 855 | Q19: 600 | R19: 600 | S19: 600 | T19: 600 | U19: 970 | V19: 1140 | X19: 600 | Y19: 600 | Z19: 600 | AA19: 600 | AB19: 970 | AC19: 1140
A20: Total statutory hours | C20: =C17*(C19*C18) -> 259701.12 | D20: =D17*(D19*D18) -> 281058.12 | E20: 330561 | F20: 505764 | G20: 1103239.2 | H20: 1314784.8 | J20: =J17*J19*J18 -> 1934010 | K20: =K17*K19*K18 -> 1919619 | L20: 1865916 | M20: 1844856 | N20: 3040397.1 | O20: 3611930.4 | Q20: =Q17*Q19*Q18 -> 3513000 | R20: =R17*R19*R18 -> 3490200 | S20: 3441600 | T20: 3352200 | U20: 5359250 | V20: 6406800 | X20: =X17*X19*X18 -> 279786 | Y20: =Y17*Y19*Y18 -> 285243 | Z20: =Z17*Z19*Z18 -> 281010 | AA20: =AA17*AA19*AA18 -> 276624 | AB20: =AB17*AB19*AB18 -> 434181.7 | AC20: =AC17*AC19*AC18 -> 503589.3
A22: Phasing - Non-statutory hours | C22: 2 year olds | J22: 3 year olds | Q22: 4 year olds | X22: 5 year olds (deferrals)
A23: Estimated number of children receiving funded non-statutory phased hours pre-2020 | C23: 0 | D23: 130 | E23: 360 | F23: 632 | G23: 1137 | J23: 0 | K23: 500 | L23: 1125 | M23: 2500 | N23: 5358 | Q23: 0 | R23: 500 | S23: 1125 | T23: 2500 | U23: 5525 | X23: 439 | Y23: 447 | Z23: 441 | AA23: 434 | AB23: 421
A24: Funded Non-statutory phased hours per child pre-2020 (hours) | D24: 600 | E24: 600 | F24: 600 | G24: 970 | J24: 0 | K24: 405 | L24: 405 | M24: 405 | N24: 127.5 | Q24: 540 | R24: 540 | S24: 540 | T24: 540 | U24: 170 | X24: 540 | Y24: 540 | Z24: 540 | AA24: 540 | AB24: 170
A25: Total funded non-statutory phased hours | C25: =C23*C24 -> 0 | D25: =D23*D24 -> 78000 | E25: 216000 | F25: 379200 | G25: =G23*G24 -> 1102890 | J25: =J23*J24 -> 0 | K25: =K23*K24 -> 202500 | L25: =L23*L24 -> 455625 | M25: =M23*M24 -> 1012500 | N25: 683145 | Q25: =Q23*Q24 -> 0 | R25: =R23*R24 -> 270000 | S25: 607500 | T25: 1350000 | U25: 939250 | X25: =X23*X24 -> 237060 | Y25: =Y23*Y24 -> 241380 | Z25: =Z23*Z24 -> 238140 | AA25: =AA23*AA24 -> 234360 | AB25: 71570
A27: Total hours | C27: =C20+C25 -> 259701.12 | D27: =D20+D25 -> 359058.12 | E27: 546561 | F27: 884964 | G27: =G20+G25 -> 2206129.2 | H27: =H20 -> 1314784.8 | J27: =J20+J25 -> 1934010 | K27: =K20+K25 -> 2122119 | L27: 2321541 | M27: 2857356 | N27: 3723542.1 | O27: =O20 -> 3611930.4 | Q27: =Q20+Q25 -> 3513000 | R27: =R20+R25 -> 3760200 | S27: =S20+S25 -> 4049100 | T27: 4702200 | U27: 6298500 | V27: =V20 -> 6406800 | X27: =X20+X25 -> 516846 | Y27: =Y20+Y25 -> 526623 | Z27: 519150 | AA27: 510984 | AB27: 505751.7 | AC27: =AC20 -> 503589.3
A29: Provision by type | C29: 2 year olds | J29: 3&4 year olds | X29: 5 year olds (deferrals)
A30: Local authority provision (% of hours) | C30: 0.8 | D30: 0.8 | E30: 0.8 | F30: 0.8 | G30: 0.8 | H30: 0.8 | J30: 0.65 | K30: 0.64 | L30: 0.64 | M30: 0.64 | N30: 0.64 | O30: 0.64 | X30: 0.6 | Y30: 0.6 | Z30: 0.6 | AA30: 0.6 | AB30: 0.6 | AC30: 0.6
A31: Partner nursery provision (% of hours) | C31: 0.2 | D31: 0.19 | E31: 0.19 | F31: 0.19 | G31: 0.19 | H31: 0.19 | J31: 0.35 | K31: 0.35 | L31: 0.35 | M31: 0.35 | N31: 0.35 | O31: 0.35 | X31: 0.4 | Y31: 0.39 | Z31: 0.39 | AA31: 0.39 | AB31: 0.39 | AC31: 0.39
A32: Childminder provision (% of hours) | C32: 0 | D32: 0.01 | E32: 0.01 | F32: 0.01 | G32: 0.01 | H32: 0.01 | J32: 0 | K32: 0.01 | L32: 0.01 | M32: 0.01 | N32: 0.01 | O32: 0.01 | X32: 0 | Y32: 0.01 | Z32: 0.01 | AA32: 0.01 | AB32: 0.01 | AC32: 0.01
A33: Total | C33: =SUM(C30:C32) -> 1 | D33: 1 | E33: 1 | F33: 1 | G33: 1 | H33: 1 | J33: =SUM(J30:J32) -> 1 | K33: 1 | L33: 1 | M33: 1 | N33: 1 | O33: 1 | X33: =SUM(X30:X32) -> 1 | Y33: 1 | Z33: 1 | AA33: 1 | AB33: 1 | AC33: 1
A35: Hours Delivered in Settings
A36: Local authority provision (hours) | C36: =C30*C$27 -> 207760.896 | D36: 287246.496 | E36: 437248.8 | F36: 707971.2 | G36: 1764903.36 | H36: =H30*H$27 -> 1051827.84 | J36: =J30*(J$27+Q$27) -> 3540556.5 | K36: 3764684.16 | L36: 4077210.24 | M36: 4838115.84 | N36: 6414106.944 | O36: 6411987.456 | X36: =X30*$X$27 -> 310107.6 | Y36: =Y30*Y$27 -> 315973.8 | Z36: 311490 | AA36: 306590.4 | AB36: 303451.02 | AC36: 302153.58
A37: Partner nursery provision (hours) | C37: 51940.224 | D37: 68221.0428 | E37: 103846.59 | F37: 168143.16 | G37: 419164.548 | H37: 249809.112 | J37: 1906453.5 | K37: 2058811.65 | L37: 2229724.35 | M37: 2645844.6 | N37: 3507714.735 | O37: 3506555.64 | X37: =X31*$X$27 -> 206738.4 | Y37: 205382.97 | Z37: 202468.5 | AA37: 199283.76 | AB37: 197243.163 | AC37: 196399.827
A38: Childminder provision (hours) | C38: 0 | D38: 3590.5812 | E38: 5465.61 | F38: 8849.64 | G38: 22061.292 | H38: 13147.848 | J38: =J32*(J$27+Q$27) -> 0 | K38: =K32*(K$27+R$27) -> 58823.19 | L38: =L32*(L$27+S$27) -> 63706.41 | M38: =M32*(M$27+T$27) -> 75595.56 | N38: =N32*(N$27+U$27) -> 100220.421 | O38: =O32*(O$27+V$27) -> 100187.304 | X38: =X32*$X$27 -> 0 | Y38: 5266.23 | Z38: 5191.5 | AA38: 5109.84 | AB38: 5057.517 | AC38: 5035.893
A40: Funded (partner) provision - hourly rate | C40: 2 year olds | J40: 3&4 year olds | X40: 5 year olds (deferrals)
A41: Nurseries | C41: 3.6 | D41: 3.67 | E41: 3.77 | F41: 4.13 | G41: 4.97 | H41: 5.31 | J41: 3.6 | K41: 3.67 | L41: 3.77 | M41: 4.13 | N41: 4.97 | O41: 5.31 | X41: 3.6 | Y41: 3.67 | Z41: 3.77 | AA41: 4.13 | AB41: 4.97 | AC41: 5.31
A42: Childminders | C42: 0 | D42: 4.7 | E42: 4.7 | F42: 5.11 | G42: 5.31 | H42: 5.31 | J42: 0 | K42: 4.7 | L42: 4.7 | M42: 5.11 | N42: 5.31 | O42: 5.31 | X42: 0 | Y42: 4.7 | Z42: 4.7 | AA42: 5.11 | AB42: 5.31 | AC42: 5.31
A45: Additional Support Needs (ASN)
C46: 2016-17 | D46: 2017-18 | E46: 2018-19 | F46: 2019-20 | G46: 2020-21 | H46: 2021-22
A47: Estimated proportion of eligible 2 year olds with ASN (%) | C47: 0.18 | D47: 0.18 | E47: 0.18 | F47: 0.18 | G47: 0.18 | H47: 0.18
A48: Estimated number of 2 year olds in local authority settings with ASN | C48: =C47*'4. Input table'!C17 -> 77.910336 | D48: =D47*'4. Input table'!D17 -> 84.317436 | E48: =E47*'4. Input table'!E17 -> 99.1683 | F48: =F47*'4. Input table'!F17 -> 151.7292 | G48: =G47*'4. Input table'!G17 -> 204.7248 | H48: =H47*'4. Input table'!H17 -> 207.5976
A49: Estimated proportion of 3&4 year olds with ASN (%) | C49: 0.18 | D49: 0.18 | E49: 0.18 | F49: 0.18 | G49: 0.18 | H49: 0.18
A50: Estimated number of 3&4 year olds in local authority settings with ASN | C50: =C49*(J17+Q17) -> 1827.504 | D50: 1814.9076 | E50: 1778.8464 | F50: 1743.6024 | G50: 1746.7632 | H50: 1772.0064
A51: Estimated proportion of 5 year olds (deferrals) with ASN (%) | C51: 0.18 | D51: 0.18 | E51: 0.18 | F51: 0.18 | G51: 0.18 | H51: 0.18
A52: Estimated number of 5 year olds (deferrals) in local authority settings with ASN | C52: =X17*C51 -> 83.9358 | D52: 85.5729 | E52: 84.303 | F52: 82.9872 | G52: 80.5698 | H52: 79.5141

Sheet 5. Staffing costs profile
A1: ELC Expansion Plan - Finance Template | E1: Practitioner | F1: Manager | G1: Specialist | H1: Aux | I1: Ratio
A2: Staffing costs profile | I2: Non-Ratio
A3: ='1. Introduction'!B4 -> City of Edinburgh Council
E4: Defining FTE | I4: Number of FTE | P4: Unit cost per FTE | W4: Costs (£m)
C5: Staff Type | E5: Number of Weeks per Year | F5: Number of Hours per Week | G5: Total Hours Per Year | I5: 2016-17 | J5: 2017-18 | K5: 2018-19 | L5: 2019-20 | M5: 2020-21 | N5: 2021-22 | P5: 2016-17 | Q5: 2017-18 | R5: 2018-19 | S5: 2019-20 | T5: 2020-21 | U5: 2021-22 | W5: 2016-17 | X5: 2017-18 | Y5: 2018-19 | Z5: 2019-20 | AA5: 2020-21 | AB5: 2021-22
A6: Staff in post - LA settings
A7: Managers (settings) | C7: Non-Ratio | D7: m | E7: 52 | F7: 36 | G7: =E7*F7 -> 1872 | I7: 14.3 | J7: 15.625 | K7: 15.6875 | L7: 15.5 | M7: 13.625 | N7: 12.5 | P7: 51760 | Q7: 51760 | R7: 51760 | S7: 51760 | T7: 51760 | U7: 51760 | W7: =I7*P7/1000000 -> 0.740168 | X7: =J7*Q7/1000000 -> 0.80875 | Y7: =K7*R7/1000000 -> 0.811985 | Z7: 0.80228 | AA7: 0.70523 | AB7: 0.647
A8: Teachers | C8: Ratio | D8: s | E8: 39 | F8: 35 | G8: =E8*F8 -> 1365 | I8: 77.5 | J8: 81.75 | K8: 88.175 | L8: 93.9375 | M8: 103.5 | N8: 108 | P8: 43148 | Q8: 43148 | R8: 43148 | S8: 43148 | T8: 43148 | U8: 43148 | W8: =I8*P8/1000000 -> 3.34397 | X8: 3.527349 | Y8: 3.8045749 | Z8: 4.05321525 | AA8: 4.465818 | AB8: 4.659984
A9: Senior practitioners / graduates | C9: Ratio | D9: p | E9: 52 | F9: 36 | G9: 1872 | I9: 17.9 | J9: 21.51970583 | K9: 23.53813722 | L9: 24.57536412 | M9: 36.51286412 | N9: 43.45036412 | P9: 42602 | Q9: 42602 | R9: 42602 | S9: 42602 | T9: 42602 | U9: 42602 | W9: 0.7625758 | X9: 0.9167825076 | Y9: 1.002771722 | Z9: 1.046959662 | AA9: 1.555521037 | AB9: 1.851072412
A10: Additional graduates | C10: Non-Ratio | D10: s | E10: 52 | F10: 36 | G10: 1872 | I10: 0 | J10: 0 | K10: 20 | L10: 20 | M10: 20 | N10: 20 | P10: 34436 | Q10: 34436 | R10: 34436 | S10: 34436 | T10: 34436 | U10: 34436 | W10: 0 | X10: 0 | Y10: 0.68872 | Z10: 0.68872 | AA10: 0.68872 | AB10: 0.68872
A11: Practitioners | C11: Ratio | D11: p | E11: 52 | F11: 36 | G11: 1872 | I11: 299.8 | J11: 338.5618759 | K11: 375.1626249 | L11: 394.1352629 | M11: 504.0525064 | N11: 566.8777309 | P11: 27963 | Q11: 27963 | R11: 27963 | S11: 27963 | T11: 27963 | U11: 27963 | W11: 8.3833074 | X11: 9.467205736 | Y11: 10.49067248 | Z11: 11.02120436 | AA11: 14.09482024 | AB11: 15.85160199
A12: Apprentices | C12: Non-Ratio | D12: p | E12: 52 | F12: 36 | G12: 1872 | I12: 12.15983135 | J12: 13.93493676 | K12: 42.72560128 | L12: 60 | M12: 60 | N12: 60 | P12: 19960 | Q12: 19960 | R12: 19960 | S12: 19960 | T12: 19960 | U12: 19960 | W12: 0.2427102338 | X12: =J12*Q12/1000000 -> 0.2781413377 | Y12: 0.8528030016 | Z12: 1.1976 | AA12: 1.1976 | AB12: =N12*U12/1000000 -> 1.1976
A13: C2 care workers / support staff (SSSC registered) | C13: Non-Ratio | D13: p | E13: 52 | F13: 36 | G13: 1872 | I13: 27.6 | J13: 69.10361456 | K13: 119.3180591 | L13: 145.1804853 | M13: 239.1978129 | N13: 292.596972 | P13: 19493 | Q13: 19493 | R13: 19493 | S13: 19493 | T13: 19493 | U13: 19493 | W13: 0.5380068 | X13: 1.347036759 | Y13: 2.325866926 | Z13: 2.830003201 | AA13: 4.662682966 | AB13: 5.703592776
A14: Admin / auxiliary staff (non-SSSC registered) | C14: Non-Ratio | D14: a | E14: 52 | F14: 36 | G14: 1872 | I14: 42.5410137 | J14: 42.5410137 | K14: 45.9 | L14: 49 | M14: 71.2 | N14: 71.9 | P14: 23528.89 | Q14: 23528.89 | R14: 23528.89 | S14: 23528.89 | T14: 23528.89 | U14: 23528.89 | W14: 1.000942832 | X14: 1.000942832 | Y14: 1.079976051 | Z14: 1.15291561 | AA14: 1.675256968 | AB14: 1.691727191
A15: Others (please specify)
A16: Nursery School Head Teachers | C16: Non-Ratio | E16: 39 | F16: 35 | G16: =E16*F16 -> 1365 | I16: 7 | J16: 7 | K16: 7 | L16: 7 | M16: 7 | N16: 7 | P16: 75152 | Q16: 75152 | R16: 75152 | S16: 75152 | T16: 75152 | U16: 75152 | W16: =I16*P16/1000000 -> 0.526064 | X16: =J16*Q16/1000000 -> 0.526064 | Y16: =K16*R16/1000000 -> 0.526064 | Z16: =L16*S16/1000000 -> 0.526064 | AA16: =M16*T16/1000000 -> 0.526064 | AB16: =N16*U16/1000000 -> 0.526064
A17: Early Years Officers | C17: Ratio | E17: 52 | F17: 36 | G17: =E17*F17 -> 1872 | I17: 136 | J17: 140.0889124 | K17: 142.8322384 | L17: 147.9853335 | M17: 175.900217 | N17: 191.1188195 | P17: 34436 | Q17: 34436 | R17: 34436 | S17: 34436 | T17: 34436 | U17: 34436 | W17: =I17*P17/1000000 -> 4.683296 | X17: =J17*Q17/1000000 -> 4.824101788 | Y17: =K17*R17/1000000 -> 4.918570962 | Z17: =L17*S17/1000000 -> 5.096022943 | AA17: =M17*T17/1000000 -> 6.057299874 | AB17: =N17*U17/1000000 -> 6.581367667
A18: Principal Teachers | C18: Ratio | E18: 39 | F18: 35 | G18: 1365 | I18: 3 | J18: 3 | K18: 2.375 | L18: 1.375 | M18: 0.375 | N18: 0 | P18: 45405 | Q18: 45405 | R18: 45405 | S18: 45405 | T18: 45405 | U18: 45405 | W18: 0.136215 | X18: 0.136215 | Y18: 0.107836875 | Z18: 0.062431875 | AA18: 0.017026875 | AB18: 0
A19: Catering Assistants | C19: Non-Ratio | E19: 52 | F19: 36 | G19: =E19*F19 -> 1872 | I19: 0 | J19: 4.899976044 | K19: 12.97637888 | L19: 17.90054427 | M19: 37.82959659 | N19: 49.12379456 | P19: 17941 | Q19: 17941 | R19: 17941 | S19: 17941 | T19: 17941 | U19: 17941 | W19: 0 | X19: 0.08791047021 | Y19: 0.2328092135 | Z19: 0.3211536647 | AA19: 0.6787007924 | AB19: 0.8813299982
A20: Trainee Early Years Practitioners | C20: Non-Ratio | E20: 52 | F20: 36 | G20: 1872 | I20: 12.15983135 | J20: 13.93493676 | K20: 23.9625 | L20: 30 | M20: 30 | N20: 30 | P20: 19960 | Q20: 19960 | R20: 19960 | S20: 19960 | T20: 19960 | U20: 19960 | W20: =I20*P20/1000000 -> 0.2427102338 | X20: =J20*Q20/1000000 -> 0.2781413377 | Y20: =K20*R20/1000000 -> 0.4782915 | Z20: =L20*S20/1000000 -> 0.5988 | AA20: =M20*T20/1000000 -> 0.5988 | AB20: =N20*U20/1000000 -> 0.5988
A21: Senior practitioners / graduates | C21: Non-Ratio | E21: 52 | F21: 36 | G21: 1872 | I21: 17.9 | J21: 21.51970583 | K21: 23.53813722 | L21: 24.57536412 | M21: 36.51286412 | N21: 43.45036412 | P21: 42602 | Q21: 42602 | R21: 42602 | S21: 42602 | T21: 42602 | U21: 42602 | W21: 0.7625758 | X21: 0.9167825076 | Y21: 1.002771722 | Z21: 1.046959662 | AA21: 1.555521037 | AB21: 1.851072412
G22: 0 | W22: 0 | X22: 0 | Y22: 0 | Z22: 0 | AA22: 0 | AB22: 0
G23: 0 | W23: 0 | X23: 0 | Y23: 0 | Z23: 0 | AA23: 0 | AB23: 0
G24: 0 | W24: 0 | X24: 0 | Y24: 0 | Z24: 0 | AA24: 0 | AB24: 0
G25: 0 | W25: 0 | X25: 0 | Y25: 0 | Z25: 0 | AA25: 0 | AB25: 0
G26: 0 | W26: 0 | X26: 0 | Y26: 0 | Z26: 0 | AA26: 0 | AB26: 0
G27: 0 | W27: 0 | X27: 0 | Y27: 0 | Z27: 0 | AA27: 0 | AB27: 0
G28: 0 | W28: 0 | X28: =J28*Q28/1000000 -> 0 | Y28: =K28*R28/1000000 -> 0 | Z28: =L28*S28/1000000 -> 0 | AA28: =M28*T28/1000000 -> 0 | AB28: =N28*U28/1000000 -> 0
G29: 0 | W29: =I29*P29/1000000 -> 0 | X29: 0 | Y29: 0 | Z29: 0 | AA29: 0 | AB29: =N29*U29/1000000 -> 0
G30: 0 | W30: 0 | X30: 0 | Y30: 0 | Z30: 0 | AA30: 0 | AB30: 0
G31: 0 | W31: 0 | X31: 0 | Y31: 0 | Z31: 0 | AA31: 0 | AB31: 0
G32: 0 | W32: 0 | X32: 0 | Y32: 0 | Z32: 0 | AA32: 0 | AB32: 0
G33: 0 | W33: 0 | X33: 0 | Y33: 0 | Z33: 0 | AA33: 0 | AB33: 0
A34: Sub total | I34: =SUM(I7:I14,I16:I33) -> 667.8606764 | J34: =SUM(J7:J14,J16:J33) -> 773.4796778 | K34: 943.191177 | L34: =SUM(L7:L14,L16:L33) -> 1031.164854 | M34: 1335.705861 | N34: 1496.018045 | P34: =SUM(P7:P14,P16:P33) -> 498386.89 | Q34: =SUM(Q7:Q14,Q16:Q33) -> 498386.89 | R34: =SUM(R7:R14,R16:R33) -> 498386.89 | S34: =SUM(S7:S14,S16:S33) -> 498386.89 | T34: =SUM(T7:T14,T16:T33) -> 498386.89 | U34: =SUM(U7:U14,U16:U33) -> 498386.89 | W34: =SUM(W7:W33) -> 21.3625421 | X34: 24.11542328 | Y34: 28.32371435 | Z34: 30.44433022 | AA34: 38.47906179 | AB34: 42.72993245
A37: Staff in post - Central costs
A38: Managers (central) | K38: 0.625 | L38: 1 | M38: 1 | N38: 1 | P38: 51760 | Q38: 51760 | R38: 51760 | S38: 51760 | T38: 51760 | U38: 51760 | W38: =I38*P38/1000000 -> 0 | X38: =J38*Q38/1000000 -> 0 | Y38: =K38*R38/1000000 -> 0.03235 | Z38: =L38*S38/1000000 -> 0.05176 | AA38: =M38*T38/1000000 -> 0.05176 | AB38: =N38*U38/1000000 -> 0.05176
A39: Quality assurance - teachers | I39: 4 | J39: 4 | K39: 4 | L39: 4 | M39: 4 | N39: 4 | P39: 72065 | Q39: 72065 | R39: 72065 | S39: 72065 | T39: 72065 | U39: 72065 | W39: =I39*P39/1000000 -> 0.28826 | X39: 0.28826 | Y39: 0.28826 | Z39: 0.28826 | AA39: 0.28826 | AB39: 0.28826
A40: Quality assurance - other | I40: 1 | J40: 1 | K40: 1 | L40: 1 | M40: 1 | N40: 1 | P40: 76222 | Q40: 76222 | R40: 76222 | S40: 76222 | T40: 76222 | U40: 76222 | W40: 0.076222 | X40: 0.076222 | Y40: 0.076222 | Z40: 0.076222 | AA40: 0.076222 | AB40: 0.076222
A41: Improvement support - teachers | W41: =I41*P41/1000000 -> 0 | X41: =J41*Q41/1000000 -> 0 | Y41: 0 | Z41: 0 | AA41: 0 | AB41: 0
A42: Improvement support - others | I42: 6.94 | J42: 6.94 | K42: 10.1025 | L42: 12 | M42: 12 | N42: 12 | P42: 44009 | Q42: 44009 | R42: 44009 | S42: 44009 | T42: 44009 | U42: 44009 | W42: =I42*P42/1000000 -> 0.30542246 | X42: 0.30542246 | Y42: =K42*R42/1000000 -> 0.4446009225 | Z42: 0.528108 | AA42: 0.528108 | AB42: =N42*U42/1000000 -> 0.528108
A43: Early Years Management Team | I43: 2 | J43: 2 | K43: 2 | L43: 2 | M43: 2 | N43: 2 | P43: 76222 | Q43: 76222 | R43: 76222 | S43: 76222 | T43: 76222 | U43: 76222 | W43: =I43*P43/1000000 -> 0.152444 | X43: 0.152444 | Y43: 0.152444 | Z43: 0.152444 | AA43: 0.152444 | AB43: 0.152444
A44: Central Admin | I44: 0.9 | J44: 0.9 | K44: 2.15 | L44: 2.9 | M44: 2.9 | N44: 2.9 | P44: 28649 | Q44: 28649 | R44: 28649 | S44: 28649 | T44: 28649 | U44: 28649 | W44: 0.0257841 | X44: 0.0257841 | Y44: 0.06159535 | Z44: 0.0830821 | AA44: 0.0830821 | AB44: 0.0830821
A45: Others (please specify)
A46: Project Admin Officer | K46: 2 | L46: 2 | M46: 2 | N46: 2 | P46: 34436 | Q46: 34436 | R46: 34436 | S46: 34436 | T46: 34436 | U46: 34436 | W46: =I46*P46/1000000 -> 0 | X46: =J46*Q46/1000000 -> 0 | Y46: =K46*R46/1000000 -> 0.068872 | Z46: =L46*S46/1000000 -> 0.068872 | AA46: =M46*T46/1000000 -> 0.068872 | AB46: =N46*U46/1000000 -> 0.068872
A47: Early Years Practitioner (Peripatetic) | K47: 4 | L47: 8 | M47: 8 | N47: 8 | P47: 27963 | Q47: 27963 | R47: 27963 | S47: 27963 | T47: 27963 | U47: 27963 | W47: 0 | X47: 0 | Y47: 0.111852 | Z47: 0.223704 | AA47: 0.223704 | AB47: 0.223704
A48: Peripatetic Teachers | I48: 3.1 | J48: 3.1 | K48: 6 | L48: 6 | M48: 6 | N48: 6 | P48: 43148 | Q48: 43148 | R48: 43148 | S48: 43148 | T48: 43148 | U48: 43148 | W48: 0.1337588 | X48: 0.1337588 | Y48: 0.258888 | Z48: 0.258888 | AA48: 0.258888 | AB48: 0.258888
W49: 0 | X49: 0 | Y49: 0 | Z49: 0 | AA49: 0 | AB49: 0
W50: 0 | X50: 0 | Y50: 0 | Z50: 0 | AA50: 0 | AB50: 0
W51: 0 | X51: 0 | Y51: 0 | Z51: 0 | AA51: 0 | AB51: 0
W52: 0 | X52: 0 | Y52: 0 | Z52: 0 | AA52: 0 | AB52: 0
A53: Sub total | I53: =SUM(I38:I44,I46:I52) -> 17.94 | J53: =SUM(J38:J44,J46:J52) -> 17.94 | K53: 31.8775 | L53: 38.9 | M53: 38.9 | N53: 38.9 | P53: =SUM(P38:P44,P46:P52) -> 454474 | Q53: =SUM(Q38:Q44,Q46:Q52) -> 454474 | R53: =SUM(R38:R44,R46:R52) -> 454474 | S53: =SUM(S38:S44,S46:S52) -> 454474 | T53: =SUM(T38:T44,T46:T52) -> 454474 | U53: =SUM(U38:U44,U46:U52) -> 454474 | W53: =SUM(W38:W52) -> 0.98189136 | X53: =SUM(X38:X52) -> 0.98189136 | Y53: 1.495084273 | Z53: 1.7313401 | AA53: 1.7313401 | AB53: 1.7313401
A55: Other staff costs
A56: Training and professional development | W56: 0.0776822 | X56: 0.09481797941 | Y56: 0.167 | Z56: 0.2618179794 | AA56: 0.2618179794 | AB56: 0.2618179794
A57: Absence Cover | W57: 0.21915998 | X57: 0.2358291346 | Y57: 0.2833649725 | Z57: 0.3385912203 | AA57: 0.448363132 | AB57: 0.4976402306
A59: Sub total | W59: =SUM(W56:W58) -> 0.29684218 | X59: =SUM(X56:X58) -> 0.330647114 | Y59: 0.4503649725 | Z59: 0.6004091997 | AA59: 0.7101811114 | AB59: 0.75945821
A61: TOTAL STAFF COSTS | W61: =W34+W59+W53 -> 22.64127564 | X61: =X34+X59+X53 -> 25.42796175 | Y61: 30.2691636 | Z61: 32.77607952 | AA61: 40.920583 | AB61: 45.22073076

Sheet 6. Revenue costs profile
A1: ELC Expansion Plan - Finance Template
A2: Revenue costs profile
A3: ='1. Introduction'!B4 -> City of Edinburgh Council
J5: Costs (£m)
C6: 2016-17 | D6: 2017-18 | E6: 2018-19 | F6: 2019-20 | G6: 2020-21 | H6: 2021-22 | J6: 2016-17 | K6: 2017-18 | L6: 2018-19 | M6: 2019-20 | N6: 2020-21 | O6: 2021-22
A8: Local authority staff costs | C8: FTEs
A9: ='5. Staffing costs profile'!A6 -> Staff in post - LA settings | C9: ='5. Staffing costs profile'!I34 -> 667.8606764 | D9: ='5. Staffing costs profile'!J34 -> 773.4796778 | E9: ='5. Staffing costs profile'!K34 -> 943.191177 | F9: ='5. Staffing costs profile'!L34 -> 1031.164854 | G9: ='5. Staffing costs profile'!M34 -> 1335.705861 | H9: ='5. Staffing costs profile'!N34 -> 1496.018045 | J9: ='5. Staffing costs profile'!W34 -> 21.3625421 | K9: ='5. Staffing costs profile'!X34 -> 24.11542328 | L9: ='5. Staffing costs profile'!Y34 -> 28.32371435 | M9: ='5. Staffing costs profile'!Z34 -> 30.44433022 | N9: ='5. Staffing costs profile'!AA34 -> 38.47906179 | O9: ='5. Staffing costs profile'!AB34 -> 42.72993245
A10: ='5. Staffing costs profile'!A37 -> Staff in post - Central costs | C10: ='5. Staffing costs profile'!I53 -> 17.94 | D10: ='5. Staffing costs profile'!J53 -> 17.94 | E10: ='5. Staffing costs profile'!K53 -> 31.8775 | F10: ='5. Staffing costs profile'!L53 -> 38.9 | G10: ='5. Staffing costs profile'!M53 -> 38.9 | H10: ='5. Staffing costs profile'!N53 -> 38.9 | J10: ='5. Staffing costs profile'!W53 -> 0.98189136 | K10: ='5. Staffing costs profile'!X53 -> 0.98189136 | L10: ='5. Staffing costs profile'!Y53 -> 1.495084273 | M10: ='5. Staffing costs profile'!Z53 -> 1.7313401 | N10: ='5. Staffing costs profile'!AA53 -> 1.7313401 | O10: ='5. Staffing costs profile'!AB53 -> 1.7313401
A11: Other staff costs | J11: ='5. Staffing costs profile'!W59 -> 0.29684218 | K11: ='5. Staffing costs profile'!X59 -> 0.330647114 | L11: ='5. Staffing costs profile'!Y59 -> 0.4503649725 | M11: ='5. Staffing costs profile'!Z59 -> 0.6004091997 | N11: ='5. Staffing costs profile'!AA59 -> 0.7101811114 | O11: ='5. Staffing costs profile'!AB59 -> 0.75945821
A12: Sub total | C12: =SUM(C9:C10) -> 685.8006764 | D12: =SUM(D9:D10) -> 791.4196778 | E12: 975.068677 | F12: 1070.064854 | G12: 1374.605861 | H12: 1534.918045 | J12: =SUM(J9:J11) -> 22.64127564 | K12: =SUM(K9:K11) -> 25.42796175 | L12: 30.2691636 | M12: 32.77607952 | N12: 40.920583 | O12: =SUM(O9:O11) -> 45.22073076
A14: Funded (partner) provision | C14: Hours
A15: Nurseries | C15: ='4. Input table'!C37+'4. Input table'!J37+'4. Input table'!X37 -> 2165132.124 | D15: ='4. Input table'!D37+'4. Input table'!K37+'4. Input table'!Y37 -> 2332415.663 | E15: ='4. Input table'!E37+'4. Input table'!L37+'4. Input table'!Z37 -> 2536039.44 | F15: ='4. Input table'!F37+'4. Input table'!M37+'4. Input table'!AA37 -> 3013271.52 | G15: ='4. Input table'!G37+'4. Input table'!N37+'4. Input table'!AB37 -> 4124122.446 | H15: ='4. Input table'!H37+'4. Input table'!O37+'4. Input table'!AC37 -> 3952764.579 | J15: =(('4. Input table'!C41*'4. Input table'!C37)+('4. Input table'!J41*'4. Input table'!J37)+('4. Input table'!X41*'4. Input table'!X37))/1000000 -> 7.794475646 | K15: =(('4. Input table'!D41*'4. Input table'!D37)+('4. Input table'!K41*'4. Input table'!K37)+('4. Input table'!Y41*'4. Input table'!Y37))/1000000 -> 8.559965482 | L15: =(('4. Input table'!E41*'4. Input table'!E37)+('4. Input table'!L41*'4. Input table'!L37)+('4. Input table'!Z41*'4. Input table'!Z37))/1000000 -> 9.560868689 | M15: =(('4. Input table'!F41*'4. Input table'!F37)+('4. Input table'!M41*'4. Input table'!M37)+('4. Input table'!AA41*'4. Input table'!AA37))/1000000 -> 12.44481138 | N15: =(('4. Input table'!G41*'4. Input table'!G37)+('4. Input table'!N41*'4. Input table'!N37)+('4. Input table'!AB41*'4. Input table'!AB37))/1000000 -> 20.49688856 | O15: =(('4. Input table'!H41*'4. Input table'!H37)+('4. Input table'!O41*'4. Input table'!O37)+('4. Input table'!AC41*'4. Input table'!AC37))/1000000 -> 20.98917991
A16: Childminders | C16: ='4. Input table'!C38+'4. Input table'!J38+'4. Input table'!X38 -> 0 | D16: ='4. Input table'!D38+'4. Input table'!K38+'4. Input table'!Y38 -> 67680.0012 | E16: ='4. Input table'!E38+'4. Input table'!L38+'4. Input table'!Z38 -> 74363.52 | F16: ='4. Input table'!F38+'4. Input table'!M38+'4. Input table'!AA38 -> 89555.04 | G16: ='4. Input table'!G38+'4. Input table'!N38+'4. Input table'!AB38 -> 127339.23 | H16: ='4. Input table'!H38+'4. Input table'!O38+'4. Input table'!AC38 -> 118371.045 | J16: =(('4. Input table'!C42*'4. Input table'!C38)+('4. Input table'!J42*'4. Input table'!J38)+('4. Input table'!X42*'4. Input table'!X38))/1000000 -> 0 | K16: =(('4. Input table'!D42*'4. Input table'!D38)+('4. Input table'!K42*'4. Input table'!K38)+('4. Input table'!Y42*'4. Input table'!Y38))/1000000 -> 0.3180960056 | L16: =(('4. Input table'!E42*'4. Input table'!E38)+('4. Input table'!L42*'4. Input table'!L38)+('4. Input table'!Z42*'4. Input table'!Z38))/1000000 -> 0.349508544 | M16: =(('4. Input table'!F42*'4. Input table'!F38)+('4. Input table'!M42*'4. Input table'!M38)+('4. Input table'!AA42*'4. Input table'!AA38))/1000000 -> 0.4576262544 | N16: =(('4. Input table'!G42*'4. Input table'!G38)+('4. Input table'!N42*'4. Input table'!N38)+('4. Input table'!AB42*'4. Input table'!AB38))/1000000 -> 0.6761713113 | O16: =(('4. Input table'!H42*'4. Input table'!H38)+('4. Input table'!O42*'4. Input table'!O38)+('4. Input table'!AC42*'4. Input table'!AC38))/1000000 -> 0.628550249
A17: Sub total | C17: =SUM(C15:C16) -> 2165132.124 | D17: =SUM(D15:D16) -> 2400095.664 | E17: 2610402.96 | F17: 3102826.56 | G17: 4251461.676 | H17: 4071135.624 | J17: =SUM(J15:J16) -> 7.794475646 | K17: =SUM(K15:K16) -> 8.878061488 | L17: 9.910377233 | M17: 12.90243763 | N17: 21.17305987 | O17: 21.61773016
A19: Lunches
A20: Cost of provision | J20: ='4. Input table'!C7*'4. Input table'!C8/1000000 -> 0 | K20: ='4. Input table'!D7*'4. Input table'!D8/1000000 -> 0.57 | L20: ='4. Input table'!E7*'4. Input table'!E8/1000000 -> 1.2825 | M20: ='4. Input table'!F7*'4. Input table'!F8/1000000 -> 2.85 | N20: ='4. Input table'!G7*'4. Input table'!G8/1000000 -> 6.20331 | O20: ='4. Input table'!H7*'4. Input table'!H8/1000000 -> 5.6113536
A22: Running costs
A23: Educational resources and supplies | J23: 0.54362485 | K23: 0.5857900722 | L23: 0.7042270964 | M23: 0.8510703629 | N23: 1.119149758 | O23: 1.237232077
A24: Administrative resources and supplies | J24: 0.02049551 | K24: 0.02208520505 | L24: 0.02655046674 | M24: 0.03208668834 | N24: 0.04219370226 | O24: 0.04664559099
A25: Buildings - rent and rates | J25: 0 | K25: 0 | L25: 0.0473 | M25: 0.1459 | N25: 0.2736 | O25: 0.325
A26: Buildings - energy / utilities costs | J26: 0 | K26: 0 | L26: 0.0046 | M26: 0.0412 | N26: 0.1231 | O26: 0.16
A27: Buildings - maintenance and lifecycle replacement | J27: 0 | K27: 0 | L27: 0.063 | M27: 0.1945 | N27: 0.3648 | O27: 0.4333
A28: Buildings - facilities management | J28: Refer to separate breakdown in rows 36-38 under 'Others'
A29: Buildings - other
A30: Information systems
A31: Others (please specify)
A32: Central Support Transactional Costs | J32: 0 | K32: 0.03514818214 | L32: 0.1353811175 | M32: 0.2518298679 | N32: 0.4832923055 | O32: 0.5871968217
A33: Central Support Employee Costs | J33: 0 | K33: 0 | L33: 0.14453855 | M33: 0.2604446 | N33: 0.45362135 | O33: 0.5695274
A36: Cleaning | J36: 0 | K36: 0 | L36: 0.0454 | M36: 0.1619 | N36: 0.2953 | O36: 0.3432
A37: Security | J37: 0 | K37: 0 | L37: 0.0473 | M37: 0.1344 | N37: 0.2712 | O37: 0.3321
A38: Janitorial Support | J38: 0 | K38: 0 | L38: 0 | M38: 0.078 | N38: 0.2029 | O38: 0.2498
A43: Wraparound hours | J43: -1.04588 | K43: -0.9196 | L43: -0.5984 | M43: -0.451 | N43: -0.43208 | O43: -0.4202
A44: Sub total | J44: =SUM(J23:J30,J32:J43) -> -0.48175964 | K44: =SUM(K23:K30,K32:K43) -> -0.2765765406 | L44: 0.6198972307 | M44: 1.700331519 | N44: 3.197077116 | O44: =SUM(O23:O30,O32:O43) -> 3.86380189
A46: TOTAL | J46: =SUM(J44,J20,J12,J17) -> 29.95399165 | K46: =SUM(K44,K20,K12,K17) -> 34.5994467 | L46: 42.08193806 | M46: 50.22884868 | N46: 71.49402998 | O46: =SUM(O44,O20,O12,O17) -> 76.31361641

Sheet 7. Capital Costs Profile
A1: ELC Expansion Plan - Finance Template
A2: Capital costs profile
A3: City of Edinburgh Council
A5: Anticipated Total Capital Cost for All Projects (£m) | B5: 39.3866351
A7: Annual Profile | B7: Costs (£m)
B8: 2017-18 | C8: 2018-19 | D8: 2019-20 | E8: 2020-21 | F8: 2021-22 | G8: Total
A9: Refurbishment projects | C9: 0.948952 | D9: 0.725 | E9: 0 | F9: 0 | G9: 1.673952
A10: Extension projects | C10: 0 | D10: 10.04482394 | E10: 13.75907746 | F10: 0 | G10: 23.80390141
A11: New build projects | C11: 0 | D11: 0 | E11: 12.94878169 | F11: 0 | G11: 12.94878169
A12: Outdoor spaces | C12: 0.15 | D12: 0.2 | G12: 0.35
A13: Other | D13: 0.2033333333 | E13: 0.2033333333 | F13: 0.2033333333 | G13: 0.61
A14: Total | B14: 0 | C14: 1.098952 | D14: 11.17315728 | E14: 26.91119249 | F14: 0.2033333333 | G14: 39.3866351 | H14: OK

Sheet 8. Summary Demand and Supply
A1: ELC Expansion Plan - Finance Template
A2: Summary Demand and Supply Analysis
C4: At April 2017 | J4: At April 2021
C5: Local Authority Settings | F5: Partner Settings | J5: Local Authority Settings | M5: Partner Settings
A6: Locality Indicator | B6: Locality | C6: Total Physical Capacity | D6: Number of Children Using the Facility | E6: Children / Capacity Ratio | F6: Total Physical Capacity | G6: Number of Children Using the Facility | H6: Children / Capacity Ratio | J6: Total Physical Capacity | K6: Number of Children Using the Facility | L6: Children / Capacity Ratio | M6: Total Physical Capacity | N6: Number of Children Using the Facility | O6: Children / Capacity Ratio
A7: Example | B7: abc | C7: 260 | D7: 480 | E7: 1.846153846 | F7: 200 | G7: 100 | H7: 0.5 | J7: 300 | K7: 420 | L7: 1.4 | M7: 200 | N7: 160 | O7: 0.8
A8: Example | B8: xyz | C8: 380 | D8: 720 | E8: 1.894736842 | F8: 100 | G8: 80 | H8: 0.8 | J8: 500 | K8: 820 | L8: 1.64 | M8: 100 | N8: 80 | O8: 0.8
A9: A | B9: Balerno | C9: 90 | D9: 139 | E9: 1.544444444 | F9: 36 | G9: 17 | H9: 0.4722222222 | J9: 198 | K9: 246 | L9: 1.242424242 | M9: 36 | N9: 17 | O9: 0.4722222222
A10: B | B10: Boroughmuir | C10: 132 | D10: 152 | E10: 1.151515152 | F10: 591 | G10: 488 | H10: 0.8257191201 | J10: 190 | K10: 300 | L10: 1.578947368 | M10: 591 | N10: 488 | O10: 0.8257191201
A11: C | B11: Broughton | C11: 215 | D11: 396 | E11: 1.841860465 | F11: 493 | G11: 297 | H11: 0.6024340771 | J11: 366 | K11: 552 | L11: 1.508196721 | M11: 493 | N11: 297 | O11: 0.6024340771
A12: D | B12: Castlebrae | C12: 288 | D12: 408 | E12: 1.416666667 | F12: 0 | G12: 0 | H12: 0 | J12: 302 | K12: 445 | L12: 1.473509934 | M12: 0 | N12: 0 | O12: 0
A13: E | B13: Craigmount | C13: 225 | D13: 367 | E13: 1.631111111 | F13: 450 | G13: 304 | H13: 0.6755555556 | J13: 321 | K13: 449 | L13: 1.398753894 | M13: 450 | N13: 304 | O13: 0.6755555556
A14: F | B14: Craigroyston | C14: 180 | D14: 344 | E14: 1.911111111 | F14: 193 | G14: 127 | H14: 0.6580310881 | J14: 349 | K14: 427 | L14: 1.223495702 | M14: 193 | N14: 127 | O14: 0.6580310881
A15: G | B15: Currie | C15: 110 | D15: 215 | E15: 1.954545455 | F15: 220 | G15: 139 | H15: 0.6318181818 | J15: 202 | K15: 252 | L15: 1.247524752 | M15: 220 | N15: 139 | O15: 0.6318181818
A16: H | B16: Drummond | C16: 190 | D16: 319 | E16: 1.678947368 | F16: 329 | G16: 270 | H16: 0.820668693 | J16: 282 | K16: 448 | L16: 1.588652482 | M16: 329 | N16: 270 | O16: 0.820668693
A17: F | B17: Firrhill | C17: 238 | D17: 386 | E17: 1.621848739 | F17: 332 | G17: 219 | H17: 0.6596385542 | J17: 339 | K17: 442 | L17: 1.303834808 | M17: 332 | N17: 219 | O17: 0.6596385542
A18: I | B18: Forrester | C18: 293 | D18: 512 | E18: 1.747440273 | F18: 48 | G18: 30 | H18: 0.625 | J18: 398 | K18: 508 | L18: 1.27638191 | M18: 48 | N18: 30 | O18: 0.625
A19: J | B19: Gracemount | C19: 70 | D19: 130 | E19: 1.857142857 | F19: 86 | G19: 36 | H19: 0.4186046512 | J19: 258 | K19: 358 | L19: 1.387596899 | M19: 86 | N19: 36 | O19: 0.4186046512
A20: K | B20: James Gillespies | C20: 322 | D20: 404 | E20: 1.254658385 | F20: 598 | G20: 448 | H20: 0.7491638796 | J20: 388 | K20: 470 | L20: 1.211340206 | M20: 598 | N20: 448 | O20: 0.7491638796
A21: L | B21: Leith | C21: 270 | D21: 496 | E21: 1.837037037 | F21: 114 | G21: 82 | H21: 0.7192982456 | J21: 571 | K21: 747 | L21: 1.308231173 | M21: 114 | N21: 82 | O21: 0.7192982456
A22: M | B22: Liberton | C22: 315 | D22: 563 | E22: 1.787301587 | F22: 382 | G22: 246 | H22: 0.6439790576 | J22: 446 | K22: 620 | L22: 1.390134529 | M22: 382 | N22: 246 | O22: 0.6439790576
A23: N | B23: Portobello | C23: 240 | D23: 384 | E23: 1.6 | F23: 297 | G23: 287 | H23: 0.9663299663 | J23: 412 | K23: 467 | L23: 1.133495146 | M23: 297 | N23: 287 | O23: 0.9663299663
A24: O | B24: Queemsferry | C24: 200 | D24: 394 | E24: 1.97 | F24: 244 | G24: 161 | H24: 0.6598360656 | J24: 318 | K24: 444 | L24: 1.396226415 | M24: 244 | N24: 161 | O24: 0.6598360656
A25: P | B25: The Royal High | C25: 130 | D25: 247 | E25: 1.9 | F25: 511 | G25: 431 | H25: 0.843444227 | J25: 197 | K25: 237 | L25: 1.203045685 | M25: 511 | N25: 431 | O25: 0.843444227
A26: Q | B26: Trinity | C26: 170 | D26: 281 | E26: 1.652941176 | F26: 313 | G26: 264 | H26: 0.8434504792 | J26: 253 | K26: 363 | L26: 1.434782609 | M26: 313 | N26: 264 | O26: 0.8434504792
A27: R | B27: Tynecastle | C27: 250 | D27: 348 | E27: 1.392 | F27: 284 | G27: 181 | H27: 0.6373239437 | J27: 307 | K27: 432 | L27: 1.407166124 | M27: 284 | N27: 181 | O27: 0.6373239437
A28: S | B28: WHEC | C28: 168 | D28: 265 | E28: 1.577380952 | F28: 47 | G28: 37 | H28: 0.7872340426 | J28: 316 | K28: 428 | L28: 1.35443038 | M28: 47 | N28: 37 | O28: 0.7872340426
B29: Totals | C29: 4096 | D29: 6750 | E29: 1.647949219 | F29: 5568 | G29: 4064 | H29: 0.7298850575 | J29: 6413 | K29: 8635 | L29: 1.346483705 | M29: 5568 | N29: 4064 | O29: 0.7298850575

Sheet 9. Capital Projects
A1: ELC Expansion Plan - Finance Template
A2: Capital Projects
A3: City of Edinburgh Council
C8: Prior to Works Commencing | H8: Outline of Proposed Works | S8: Post Works Completing
A9: Refurbishment Projects | B9: Locality Indiactor (As Per Summary Demand and Supply Sheet) | C9: Physical Capacity Prior to Works | D9: Number of Children Using the Facility in April 2017 | E9: Children / Physical Capacity Ratio | F9: Maximum Deliverable Hours Per Annum Per Child | G9: Total Maximum Deliverable Hours Per Annum Per Setting | H9: Description | I9: Total Area (Sqm) | J9: Cost per square metre (£) | K9: Base Date | L9: Base Date Indice | M9: Expected Tender Date | N9: Tender Date Indice | O9: Location Adjustment (%) | P9: Land Costs (£) | Q9: Total Cost (£) | R9: Construction Period | S9: Physical Indoor Capacity Post Works | T9: Proposed Registered Outdoor Capacity Post Works (with ref to Space to Grow) | U9: Total Proposed Capacity | V9: Increased Capacity | W9: Forecast Number of Children Using the Facility in April 2021 | X9: Children / Capacity Ratio | Y9: Maximum Deliverable Hours Per Annum Per Child | Z9: Total Maximum Deliverable Hours Per Annum Per Setting
A10: Example A | B10: A | C10: 40 | D10: 70 | E10: 1.75 | F10: 1200.8 | G10: 48032 | H10: Minor refurbishment | I10: 58 | J10: 1500 | K10: 2Q 2018 | L10: 284 | M10: 4Q 2018 | N10: 286 | O10: 0 | P10: 0 | Q10: 87612.67606 | R10: 6 months | S10: 48 | T10: 0 | U10: 48 | V10: 8 | W10: 48 | X10: 1 | Y10: 1140 | Z10: 54720
A11: Example B | B11: B | C11: 40 | D11: 65 | E11: 1.625 | F11: 2500 | G11: 100000 | H11: Major refurbishment | I11: 80 | J11: 2100 | K11: 2Q 2018 | L11: 284 | M11: 4Q 2018 | N11: 286 | O11: 0.15 | P11: 0 | Q11: 194560.5634 | R11: 6 months | S11: 68 | T11: 12 | U11: 80 | V11: 40 | W11: 120 | X11: 1.5 | Y11: 2500 | Z11: 200000
A12: Dean Park | B12: Balerno | C12: 60 | D12: 87 | E12: 1.45 | F12: 1200.8 | G12: 72048 | H12: Refurbishment | I12: 225 | K12: 2Q 2018 | L12: 284 | M12: 2018 | N12: 284 | O12: 0 | P12: 0 | Q12: 215000 | R12: 4 months | S12: 88 | T12: 0 | U12: 88 | V12: 28 | W12: 88 | X12: 1 | Y12: 1140 | Z12: 100320
A13: Moffat EYC | B13: Castlebrae | C13: 100 | D13: 110 | E13: 1.1 | F13: 1580 | G13: 158000 | H13: Refurbishment | I13: 128 | K13: 2Q 2018 | L13: 284 | M13: 2018 | N13: 284 | O13: 0 | P13: 0 | Q13: 65352 | R13: 3 months | S13: 110 | T13: 0 | U13: 110 | V13: 10 | W13: 165 | X13: 1.5 | Y13: 1710 | Z13: 188100
A14: Forthview PS | B14: Craigroyston | C14: 50 | D14: 98 | E14: 1.96 | F14: 1200.8 | G14: 60040 | H14: Refurbishment | I14: 150 | K14: 2Q 2018 | L14: 284 | M14: 2018 | N14: 290 | O14: 0 | P14: 0 | Q14: 94000 | R14: 4 months | S14: 64 | T14: 0 | U14: 64 | V14: 14 | W14: 64 | X14: 1 | Y14: 1140 | Z14: 72960
A15: Abbeyhill PS | B15: Drummond | C15: 40 | D15: 54 | E15: 1.35 | F15: 1200.8 | G15: 48032 | H15: Refurbishment | K15: 2Q 2018 | L15: 284 | M15: 2018 | N15: 290 | O15: 0 | P15: 0 | Q15: 44600 | R15: 2 months | S15: 48 | T15: 0 | U15: 48 | V15: 8 | W15: 48 | X15: 1 | Y15: 1140 | Z15: 54720
A16: Hope Cottage NS | B16: James Gillespies | C16: 40 | D16: 51 | E16: 1.275 | F16: 1200.8 | G16: 48032 | H16: Refurbishment | I16: 168 | K16: 2Q 2018 | L16: 284 | M16: 2019 | N16: 290 | O16: 0 | P16: 0 | Q16: 95000 | R16: 4 months | S16: 48 | T16: 0 | U16: 48 | V16: 8 | W16: 48 | X16: 1 | Y16: 1140 | Z16: 54720
A17: St Leonards NS | B17: James Gillespies | C17: 40 | D17: 54 | E17: 1.35 | F17: 1200.8 | G17: 48032 | H17: Refurbishment | I17: 160 | K17: 2Q 2018 | L17: 284 | M17: 2019 | N17: 290 | O17: 0 | P17: 0 | Q17: 100000 | R17: 4 months | S17: 56 | T17: 0 | U17: 56 | V17: 16 | W17: 56 | X17: 1 | Y17: 1140 | Z17: 63840
A18: St Peters PS | B18: James Gillespies | C18: 30 | D18: 56 | E18: 1.866666667 | F18: 1200.8 | G18: 36024 | H18: Refurbishment | I18: 100 | K18: 2Q 2018 | L18: 284 | M18: 2019 | N18: 290 | O18: 0 | P18: 0 | Q18: 90000 | R18: 4 months | S18: 40 | T18: 0 | U18: 40 | V18: 10 | W18: 40 | X18: 1 | Y18: 1140 | Z18: 45600
A19: Stanwell NS | B19: Leith | C19: 60 | D19: 118 | E19: 1.966666667 | F19: 1200.8 | G19: 72048 | H19: Refurbishment | I19: 314 | K19: 2Q 2018 | L19: 284 | M19: 2019 | N19: 290 | O19: 0 | P19: 0 | Q19: 175000 | R19: 4 months | S19: 72 | T19: 0 | U19: 72 | V19: 12 | W19: 112 | X19: 1.555555556 | Y19: 1779 | Z19: 128088
A20: Prestonfield PS | B20: Liberton | C20: 30 | D20: 40 | E20: 1.333333333 | F20: 1200.8 | G20: 36024 | H20: Refurbishment | I20: 245 | K20: 2Q 2018 | L20: 284 | M20: 2018 | N20: 284 | O20: 0 | P20: 0 | Q20: 150000 | R20: 4 months | S20: 48 | T20: 0 | U20: 48 | V20: 18 | W20: 48 | X20: 1 | Y20: 1140 | Z20: 54720
A21: Brunstane PS | B21: Portobello | C21: 40 | D21: 52 | E21: 1.3 | F21: 1200.8 | G21: 48032 | H21: Refurbishment | I21: 508 | K21: 2Q 2018 | L21: 284 | M21: 2018 | N21: 284 | O21: 0 | P21: 0 | Q21: 325000 | R21: 4 months | S21: 96 | T21: 0 | U21: 96 | V21: 56 | W21: 96 | X21: 1 | Y21: 1140 | Z21: 109440
A22: Dalmeny PS | B22: Queensferry | C22: 20 | D22: 23 | E22: 1.15 | F22: 1200.8 | G22: 24016 | H22: Refurbishment | I22: 82 | K22: 2Q 2018 | L22: 284 | M22: 2018 | N22: 290 | O22: 0 | P22: 0 | Q22: 55000 | R22: 4 months | S22: 30 | T22: 0 | U22: 30 | V22: 10 | W22: 30 | X22: 1 | Y22: 1140 | Z22: 34200
A23: Canal View PS | B23: WHEC | C23: 40 | D23: 79 | E23: 1.975 | F23: 1200.8 | G23: 48032 | H23: Refurbishment | I23: 225 | K23: 2Q 2018 | L23: 284 | M23: 2019 | N23: 290 | O23: 0 | P23: 0 | Q23: 145000 | R23: 4 months | S23: 64 | T23: 0 | U23: 64 | V23: 24 | W23: 64 | X23: 1 | Y23: 1140 | Z23: 72960
A24: Clovenstone PS | B24: WHEC | C24: 30 | D24: 58 | E24: 1.933333333 | F24: 1200.8 | G24: 36024 | H24: Refurbishment | I24: 215 | K24: 2Q 2018 | L24: 284 | M24: 2019 | N24: 290 | O24: 0 | P24: 0 | Q24: 120000 | R24: 4 months | S24: 42 | T24: 0 | U24: 42 | V24: 12 | W24: 42 | X24: 1 | Y24: 1140 | Z24: 47880
G25: 0 | K25: 2Q 2018 | L25: 284 | O25: 0 | Q25: 0 | U25: 0 | V25: 0 | Z25: 0
A27: Extension Projects
A28: Example C | B28: A | C28: 40 | D28: 75 | E28: 1.875 | F28: 1200.8 | G28: 48032 | H28: Extension | I28: 120 | J28: 3300 | K28: 2Q 2018 | L28: 284 | M28: 2Q 2018 | N28: 287 | O28: 0 | P28: 0 | Q28: 400183.0986 | R28: 6 months | S28: 60 | T28: 12 | U28: 72 | V28: 32 | W28: 68 | X28: 0.9444444444 | Y28: 1140 | Z28: 82080
A29: Example D | B29: D | C29: 40 | D29: 80 | E29: 2 | F29: 2500 | G29: 100000 | H29: Extension | I29: 348 | J29: 3300 | K29: 2Q 2018 | L29: 284 | M29: 1Q 2019 | N29: 287 | O29: 0.15 | P29: 0 | Q29: 1334610.634 | R29: 6 months | S29: 100 | T29: 0 | U29: 100 | V29: 60 | W29: 180 | X29: 1.8 | Y29: 2500 | Z29: 250000
A30: Ratho PS | B30: Balerno | C30: 30 | D30: 52 | E30: 1.733333333 | F30: 1200.8 | G30: 36024 | H30: Replacement new build | I30: 424 | J30: 3000 | K30: 2Q 2018 | L30: 284 | M30: 2020 | N30: 302 | O30: 0 | P30: 0 | Q30: 1352619.718 | R30: 8 months | S30: 73 | T30: 7 | U30: 80 | V30: 50 | W30: 128 | X30: 1.6 | Y30: 1824 | Z30: 145920
A31: Granton PS | B31: Broughton | C31: 60 | D31: 111 | E31: 1.85 | F31: 1200.8 | G31: 72048 | H31: Replacement new build | I31: 720 | J31: 3000 | K31: 2Q 2018 | L31: 284 | M31: 2020 | N31: 302 | O31: 0 | P31: 0 | Q31: 2296901.408 | R31: 8 months | S31: 124 | T31: 12 | U31: 136 | V31: 76 | W31: 204 | X31: 1.5 | Y31: 1710 | Z31: 232560
A32: Broughton PS | B32: Drummond | C32: 50 | D32: 82 | E32: 1.64 | F32: 1200.8 | G32: 60040 | H32: Replacement new build | I32: 720 | J32: 3000 | K32: 2Q 2018 | L32: 284 | M32: 2020 | N32: 302 | O32: 0 | P32: 0 | Q32: 2296901.408 | R32: 8 months | S32: 124 | T32: 12 | U32: 136 | V32: 86 | W32: 204 | X32: 1.5 | Y32: 1710 | Z32: 232560
A33: St Marks PS | B33: Firrhill | C33: 30 | D33: 33 | E33: 1.1 | F33: 1200.8 | G33: 36024 | H33: Replacement new build | I33: 557 | J33: 3000 | K33: 2Q 2018 | L33: 284 | M33: 2020 | N33: 302 | O33: 0 | P33: 0 | Q33: 1776908.451 | R33: 8 months | S33: 96 | T33: 10 | U33: 106 | V33: 76 | W33: 154 | X33: 1.452830189 | Y33: 1653 | Z33: 175218
A34: Carrick Knowe PS | B34: Forrester | C34: 60 | D34: 94 | E34: 1.566666667 | F34: 1200.8 | G34: 72048 | H34: Replacement new build | I34: 505 | J34: 3000 | K34: 2Q 2018 | L34: 284 | M34: 2020 | N34: 302 | O34: 0 | P34: 0 | Q34: 1611021.127 | R34: 8 months | S34: 87 | T34: 9 | U34: 96 | V34: 36 | W34: 144 | X34: 1.5 | Y34: 1710 | Z34: 164160
A35: Calderglen NS | B35: Forrester | C35: 60 | D35: 100 | E35: 1.666666667 | F35: 1200.8 | G35: 72048 | H35: Replacement new build | I35: 667 | J35: 3000 | K35: 2Q 2018 | L35: 284 | M35: 2020 | N35: 302 | O35: 0 | P35: 0 | Q35: 2127823.944 | R35: 8 months | S35: 115 | T35: 11 | U35: 126 | V35: 66 | W35: 189 | X35: 1.5 | Y35: 1710 | Z35: 215460
A36: Craigentinny PS | B36: Leith | C36: 40 | D36: 79 | E36: 1.975 | F36: 1200.8 | G36: 48032 | H36: Replacement new build | I36: 720 | J36: 3000 | K36: 2Q 2018 | L36: 284 | M36: 2019 | N36: 290 | O36: 0 | P36: 0 | Q36: 2205633.803 | R36: 8 months | S36: 124 | T36: 12 | U36: 136 | V36: 96 | W36: 204 | X36: 1.5 | Y36: 1710 | Z36: 232560
A37: St John Vianny PS | B37: Liberton | C37: 30 | D37: 44 | E37: 1.466666667 | F37: 1200.8 | G37: 36024 | H37: Replacement new build | I37: 667 | J37: 3000 | K37: 2Q 2018 | L37: 284 | M37: 2019 | N37: 290 | O37: 0 | P37: 0 | Q37: 2043274.648 | R37: 8 months | S37: 115 | T37: 12 | U37: 127 | V37: 97 | W37: 189 | X37: 1.488188976 | Y37: 1710 | Z37: 217170
A38: Gilmerton EYC | B38: Liberton | C38: 50 | D38: 68 | E38: 1.36 | F38: 1200.8 | G38: 60040 | H38: Replacement new build | I38: 331 | J38: 3000 | K38: 2Q 2018 | L38: 284 | M38: 2019 | N38: 290 | O38: 0 | P38: 0 | Q38: 1013978.873 | R38: 8 months | S38: 57 | T38: 6 | U38: 63 | V38: 13 | W38: 126 | X38: 2 | Y38: 2280 | Z38: 143640
A39: Royal High PS | B39: Portobello | C39: 30 | D39: 53 | E39: 1.766666667 | F39: 1200.8 | G39: 36024 | H39: Replacement new build | I39: 499 | J39: 3000 | K39: 2Q 2018 | L39: 284 | M39: 2019 | N39: 290 | O39: 0 | P39: 0 | Q39: 1528626.761 | R39: 8 months | S39: 86 | T39: 9 | U39: 95 | V39: 65 | W39: 150 | X39: 1.578947368 | Y39: 1801 | Z39: 171095
A40: Kirkliston NS | B40: Queensferry | C40: 70 | D40: 186 | E40: 2.657142857 | F40: 1200.8 | G40: 84056 | H40: Replacement new build | I40: 557 | J40: 3000 | K40: 2Q 2018 | L40: 284 | M40: 2019 | N40: 290 | O40: 0 | P40: 0 | Q40: 1706302.817 | R40: 8 months | S40: 96 | T40: 10 | U40: 106 | V40: 36 | W40: 154 | X40: 1.452830189 | Y40: 1653 | Z40: 175218
A41: Echline PS | B41: Queensferry | C41: 30 | D41: 59 | E41: 1.966666667 | F41: 1200.8 | G41: 36024 | H41: Replacement new build | I41: 505 | J41: 3000 | K41: 2Q 2018 | L41: 284 | M41: 2019 | N41: 290 | O41: 0 | P41: 0 | Q41: 1547007.042 | R41: 8 months | S41: 87 | T41: 9 | U41: 96 | V41: 66 | W41: 144 | X41: 1.5 | Y41: 1710 | Z41: 164160
A42: Sighthill PS | B42: WHEC | C42: 30 | D42: 49 | E42: 1.633333333 | F42: 1200.8 | G42: 36024 | H42: Replacement new build | I42: 720 | J42: 3000 | K42: 2Q 2018 | L42: 284 | M42: 2020 | N42: 302 | O42: 0 | P42: 0 | Q42: 2296901.408 | R42: 8 months | S42: 124 | T42: 12 | U42: 136 | V42: 106 | W42: 204 | X42: 1.5 | Y42: 1710 | Z42: 232560
G43: 0 | K43: 2Q 2018 | L43: 284 | Q43: 0 | U43: 0 | V43: 0 | Z43: 0
A45: New Build Projects
A46: Example E | B46: D | C46: 40 | D46: 75 | E46: 1.875 | F46: 1200.8 | G46: 48032 | H46: New build | I46: 580 | J46: 3000 | K46: 2Q 2018 | L46: 284 | M46: 2Q 2019 | N46: 290 | O46: 0 | P46: 0 | Q46: 1776760.563 | R46: 12 months | S46: 100 | T46: 20 | U46: 120 | V46: 80 | W46: 115 | X46: 0.9583333333 | Y46: 1140 | Z46: 136800
A47: Example F | B47: D | C47: 40 | D47: 80 | E47: 2 | F47: 2500 | G47: 100000 | H47: New build | I47: 580 | J47: 3000 | K47: 2Q 2018 | L47: 284 | M47: 1Q 2020 | N47: 302 | O47: 0.15 | P47: 0 | Q47: 2127823.944 | R47: 12 months | S47: 100 | T47: 20 | U47: 120 | V47: 80 | W47: 210 | X47: 1.75 | Y47: 2500 | Z47: 300000
A48: Boroughmuir ELCC | B48: Boroughmuir | C48: 0 | D48: 0 | F48: 0 | G48: 0 | H48: New build | I48: 424 | J48: 3000 | K48: 2Q 2018 | L48: 284 | M48: 2020 | N48: 302 | O48: 0 | P48: 0 | Q48: 1352619.718 | R48: 8 months | S48: 73 | T48: 7 | U48: 80 | V48: 80 | W48: 120 | X48: 1.5 | Y48: 1710 | Z48: 136800
A49: Craigmount ELCC | B49: Craigmount | C49: 0 | D49: 0 | F49: 0 | G49: 0 | H49: New build | I49: 424 | J49: 3000 | K49: 2Q 2018 | L49: 284 | M49: 2020 | N49: 302 | O49: 0 | P49: 0 | Q49: 1352619.718 | R49: 8 months | S49: 73 | T49: 7 | U49: 80 | V49: 80 | W49: 120 | X49: 1.5 | Y49: 1710 | Z49: 136800
A50: Craigroyston ELCC | B50: Craigroyston | C50: 0 | D50: 0 | F50: 0 | G50: 0 | H50: New build | I50: 795 | J50: 3000 | K50: 2Q 2018 | L50: 284 | M50: 2020 | N50: 302 | O50: 0 | P50: 0 | Q50: 2536161.972 | R50: 8 months | S50: 137 | T50: 14 | U50: 151 | V50: 151 | W50: 229 | X50: 1.516556291 | Y50: 1733 | Z50: 261683
A51: Currie ELCC | B51: Currie | C51: 0 | D51: 0 | F51: 0 | G51: 0 | H51: New build | I51: 476 | J51: 3000 | K51: 2Q 2018 | L51: 284 | M51: 2020 | N51: 302 | O51: 0 | P51: 0 | Q51: 1518507.042 | R51: 8 months | S51: 82 | T51: 8 | U51: 90 | V51: 90 | W51: 140 | X51: 1.555555556 | Y51: 1779 | Z51: 160110
A52: Broomhills ELCC | B52: Gracemount | C52: 0 | D52: 0 | F52: 0 | G52: 0 | H52: New build | I52: 401 | J52: 3000 | K52: 2Q 2018 | L52: 284 | M52: 2020 | N52: 302 | O52: 0 | P52: 0 | Q52: 1279246.479 | R52: 8 months | S52: 69 | T52: 7 | U52: 76 | V52: 76 | W52: 126 | X52: 1.657894737 | Y52: 2007 | Z52: 152532
A53: Gracemount ELCC | B53: Gracemount | C53: 0 | D53: 0 | F53: 0 | G53: 0 | H53: New build | I53: 401 | J53: 3000 | K53: 2Q 2018 | L53: 284 | M53: 2020 | N53: 302 | O53: 0 | P53: 0 | Q53: 1279246.479 | R53: 8 months | S53: 69 | T53: 7 | U53: 76 | V53: 76 | W53: 126 | X53: 1.657894737 | Y53: 2007 | Z53: 152532
A54: North Leith ELCC | B54: Leith | C54: 0 | D54: 0 | F54: 0 | G54: 0 | H54: New build | I54: 720 | J54: 3000 | K54: 2Q 2018 | L54: 284 | M54: 2020 | N54: 302 | O54: 0 | P54: 0 | Q54: 2296901.408 | R54: 8 months | S54: 124 | T54: 12 | U54: 136 | V54: 136 | W54: 204 | X54: 1.5 | Y54: 1710 | Z54: 232560
A55: Trinity ELCC | B55: Trinity | C55: 0 | D55: 0 | F55: 0 | G55: 0 | H55: New build | I55: 418 | J55: 3000 | K55: 2Q 2018 | L55: 284 | M55: 2020 | N55: 302 | O55: 0 | P55: 0 | Q55: 1333478.873 | R55: 8 months | S55: 72 | T55: 7 | U55: 79 | V55: 79 | W55: 119 | X55: 1.506329114 | Y55: 1722 | Z55: 136038
A57: Outdoor Projects (Standalone eg Forrest Kindergarten)
A58: Example G | B58: A | C58: 48 | D58: 75 | E58: 1.5625 | F58: 1200.8 | G58: 57638.4 | H58: Provision of geodome and associated works | Q58: 500000 | R58: 3 months | S58: 100 | T58: 48 | U58: 148 | V58: 100 | W58: 115 | X58: 0.777027027 | Y58: 1140 | Z58: 168720
A59: Example H | B59: A | C59: 24 | D59: 80 | E59: 3.333333333 | F59: 2500 | G59: 60000 | H59: Provision of yurt and associate works | Q59: 250000 | R59: 3 months | S59: 100 | T59: 24 | U59: 124 | V59: 100 | W59: 210 | X59: 1.693548387 | Y59: 2500 | Z59: 310000
A60: Clifton Hall FK | B60: Balerno | C60: 0 | D60: 0 | F60: 0 | G60: 0 | H60: Yurt | Q60: 50000 | R60: 3 months | T60: 30 | U60: 30 | V60: 30 | W60: 30 | X60: 1 | Y60: 1140 | Z60: 34200
A61: Mortonhall FK | B61: Gracemount | C61: 0 | D61: 0 | F61: 0 | G61: 0 | H61: Yurt | Q61: 50000 | R61: 3 months | T61: 30 | U61: 30 | V61: 30 | W61: 30 | X61: 1 | Y61: 1140 | Z61: 34200
A62: Hermitage FK | B62: James Gillespies | C62: 0 | D62: 0 | F62: 0 | G62: 0 | H62: Yurt | Q62: 50000 | R62: 3 months | T62: 30 | U62: 30 | V62: 30 | W62: 30 | X62: 1 | Y62: 1140 | Z62: 34200
A63: Meadows Yard FK | B63: Leith | C63: 0 | D63: 0 | F63: 0 | G63: 0 | H63: Yurt | Q63: 50000 | R63: 3 months | T63: 30 | U63: 30 | V63: 30 | W63: 30 | X63: 1 | Y63: 1140 | Z63: 34200
A64: Meadow Field FK | B64: Portobello | C64: 0 | D64: 0 | F64: 0 | G64: 0 | H64: Yurt | Q64: 50000 | R64: 3 months | T64: 30 | U64: 30 | V64: 30 | W64: 30 | X64: 1 | Y64: 1140 | Z64: 34200
A65: Laurison Castle FK | B65: Royal High | C65: 0 | D65: 0 | F65: 0 | G65: 0 | H65: Yurt | Q65: 50000 | R65: 3 months | T65: 30 | U65: 30 | V65: 30 | W65: 30 | X65: 1 | Y65: 1140 | Z65: 34200
A66: Craiglockhart FK | B66: Tynecastle | C66: 0 | D66: 0 | F66: 0 | G66: 0 | H66: Yurt | Q66: 50000 | R66: 3 months | T66: 30 | U66: 30 | V66: 30 | W66: 30 | X66: 1 | Y66: 1140 | Z66: 34200
G67: 0 | U67: 0 | V67: 0 | Z67: 0
G68: 0 | U68: 0 | V68: 0 | Z68: 0
A69: Other LA Settings Where No Capital Works Are Envisaged At Present (Please list all other settings) | G69: 0 | U69: 0 | V69: 0 | Z69: 0
A70: Example I | B70: B | C70: 40 | D70: 80 | E70: 2 | F70: 1200.8 | G70: 48032 | S70: 48 | T70: 0 | U70: 48 | V70: 8 | W70: 80 | X70: 1.666666667 | Y70: 2500 | Z70: 120000
A71: Example J | B71: C | C71: 100 | D71: 160 | E71: 1.6 | F71: 2500 | G71: 250000 | S71: 100 | T71: 12 | U71: 112 | V71: 12 | W71: 180 | X71: 1.607142857 | Y71: 2500 | Z71: 280000
A72: Buckstone PS | B72: Boroughmuir | C72: 40 | D72: 75 | E72: 1.875 | F72: 1200.8 | G72: 48032 | S72: 40 | T72: 0 | U72: 40 | V72: 0 | W72: 40 | X72: 1 | Y72: 1140 | Z72: 45600
A73: South Morningside PS | B73: Boroughmuir | C73: 30 | D73: 41 | E73: 1.366666667 | F73: 1200.8 | G73: 36024 | S73: 0 | T73: 0 | U73: 0 | V73: -30 | W73: 0 | Y73: 0 | Z73: 0
A74: Viewforth | B74: Boroughmuir | C74: 62 | D74: 36 | E74: 0.5806451613 | F74: 1580 | G74: 97960 | S74: 70 | T74: 0 | U74: 70 | V74: 8 | W74: 140 | X74: 2 | Y74: 2280 | Z74: 159600
A75: Ferryhill PS | B75: Broughton | C75: 40 | D75: 78 | E75: 1.95 | F75: 1200.8 | G75: 48032 | S75: 79 | T75: 0 | U75: 79 | V75: 39 | W75: 142 | X75: 1.797468354 | Y75: 2104 | Z75: 166216
A76: Flora Stevenson PS | B76: Broughton | C76: 60 | D76: 117 | E76: 1.95 | F76: 1200.8 | G76: 72048 | S76: 56 | T76: 0 | U76: 56 | V76: -4 | W76: 56 | X76: 1 | Y76: 1140 | Z76: 63840
A77: Granton EYC | B77: Broughton | C77: 15 | D77: 21 | E77: 1.4 | F77: 1580 | G77: 23700 | S77: 55 | T77: 0 | U77: 55 | V77: 40 | W77: 110 | X77: 2 | Y77: 2280 | Z77: 125400
A78: Stockbridge PS | B78: Broughton | C78: 40 | D78: 69 | E78: 1.725 | F78: 1200.8 | G78: 48032 | S78: 40 | T78: 0 | U78: 40 | V78: 0 | W78: 40 | X78: 1 | Y78: 1140 | Z78: 45600
A79: Castleview PS | B79: Castlebrae | C79: 30 | D79: 59 | E79: 1.966666667 | F79: 1200.8 | G79: 36024 | S79: 32 | T79: 0 | U79: 32 | V79: 2 | W79: 32 | X79: 1 | Y79: 1140 | Z79: 36480
A80: Craigmillar EYC | B80: Castlebrae | C80: 36 | D80: 44 | E80: 1.222222222 | F80: 1580 | G80: 56880 | S80: 44 | T80: 0 | U80: 44 | V80: 8 | W80: 88 | X80: 2 | Y80: 2280 | Z80: 100320
A81: Greendykes EYC | B81: Castlebrae | C81: 44 | D81: 100 | E81: 2.272727273 | F81: 1580 | G81: 69520 | S81: 44 | T81: 0 | U81: 44 | V81: 0 | W81: 88 | X81: 2 | Y81: 2280 | Z81: 100320
A82: Greengables NS | B82: Castlebrae | C82: 50 | D82: 53 | E82: 1.06 | F82: 1200.8 | G82: 60040 | S82: 48 | T82: 0 | U82: 48 | V82: -2 | W82: 48 | X82: 1 | Y82: 1140 | Z82: 54720
A83: Newcraighall PS | B83: Castlebrae | C83: 20 | D83: 34 | E83: 1.7 | F83: 1200.8 | G83: 24016 | S83: 16 | T83: 0 | U83: 16 | V83: -4 | W83: 16 | X83: 1 | Y83: 1140 | Z83: 18240
A84: Oaklands | B84: Castlebrae | C84: 8 | D84: 8 | E84: 1 | F84: 1200.8 | G84: 9606.4 | S84: 8 | T84: 0 | U84: 8 | V84: 0 | W84: 8 | X84: 1 | Y84: 1140 | Z84: 9120
A85: Corstorphine PS | B85: Craigmount | C85: 50 | D85: 97 | E85: 1.94 | F85: 1200.8 | G85: 60040 | S85: 48 | T85: 0 | U85: 48 | V85: -2 | W85: 96 | X85: 2 | Y85: 2280 | Z85: 109440
A86: East Craigs PS | B86: Craigmount | C86: 40 | D86: 78 | E86: 1.95 | F86: 1200.8 | G86: 48032 | S86: 40 | T86: 0 | U86: 40 | V86: 0 | W86: 40 | X86: 1 | Y86: 1140 | Z86: 45600
A87: Fox Covert EYC | B87: Craigmount | C87: 85 | D87: 141 | E87: 1.658823529 | F87: 1580 | G87: 134300 | S87: 87 | T87: 0 | U87: 87 | V87: 2 | W87: 127 | X87: 1.459770115 | Y87: 1665 | Z87: 144855
A88: Hillwood PS | B88: Craigmount | C88: 20 | D88: 13 | E88: 0.65 | F88: 1200.8 | G88: 24016 | S88: 34 | T88: 0 | U88: 34 | V88: 14 | W88: 34 | X88: 1 | Y88: 1140 | Z88: 38760
A89: Roseburn PS | B89: Craigmount | C89: 30 | D89: 38 | E89: 1.266666667 | F89: 1200.8 | G89: 36024 | S89: 32 | T89: 0 | U89: 32 | V89: 2 | W89: 32 | X89: 1 | Y89: 1140 | Z89: 36480
A90: Craigroyston PS | B90: Craigroyston | C90: 40 | D90: 99 | E90: 2.475 | F90: 1200.8 | G90: 48032 | S90: 40 | T90: 0 | U90: 40 | V90: 0 | W90: 40 | X90: 1 | Y90: 1140 | Z90: 45600
A91: Craigroyston EYC | B91: Craigroyston | C91: 30 | D91: 32 | E91: 1.066666667 | F91: 1580 | G91: 47400 | S91: 30 | T91: 0 | U91: 30 | V91: 0 | W91: 30 | X91: 1 | Y91: 1140 | Z91: 34200
A92: Pirniehall PS | B92: Craigroyston | C92: 30 | D92: 56 | E92: 1.866666667 | F92: 1200.8 | G92: 36024 | S92: 32 | T92: 0 | U92: 32 | V92: 2 | W92: 32 | X92: 1 | Y92: 1140 | Z92: 36480
A93: St David's RC PS | B93: Craigroyston | C93: 30 | D93: 59 | E93: 1.966666667 | F93: 1200.8 | G93: 36024 | S93: 32 | T93: 0 | U93: 32 | V93: 2 | W93: 32 | X93: 1 | Y93: 1140 | Z93: 36480
A94: Currie PS | B94: Currie | C94: 60 | D94: 117 | E94: 1.95 | F94: 1200.8 | G94: 72048 | S94: 64 | T94: 0 | U94: 64 | V94: 4 | W94: 64 | X94: 1 | Y94: 1140 | Z94: 72960
A95: Juniper Green PS | B95: Currie | C95: 50 | D95: 98 | E95: 1.96 | F95: 1200.8 | G95: 60040 | S95: 48 | T95: 0 | U95: 48 | V95: -2 | W95: 48 | X95: 1 | Y95: 1140 | Z95: 54720
A96: Bun-sgoil Taobh na Pairce | B96: Drummond | C96: 40 | D96: 79 | E96: 1.975 | F96: 1200.8 | G96: 48032 | S96: 40 | T96: 0 | U96: 40 | V96: 0 | W96: 80 | X96: 2 | Y96: 2280 | Z96: 91200
A97: Leith Walk PS | B97: Drummond | C97: 60 | D97: 104 | E97: 1.733333333 | F97: 1200.8 | G97: 72048 | S97: 58 | T97: 0 | U97: 58 | V97: -2 | W97: 116 | X97: 2 | Y97: 2280 | Z97: 132240
A98: Bonaly PS | B98: Firrhill | C98: 50 | D98: 94 | E98: 1.88 | F98: 1200.8 | G98: 60040 | S98: 48 | T98: 0 | U98: 48 | V98: -2 | W98: 48 | X98: 1 | Y98: 1140 | Z98: 54720
A99: Colinton PS | B99: Firrhill | C99: 20 | D99: 41 | E99: 2.05 | F99: 1200.8 | G99: 24016 | S99: 24 | T99: 0 | U99: 24 | V99: 4 | W99: 24 | X99: 1 | Y99: 1140 | Z99: 27360
A100: Longstone PS | B100: Firrhill | C100: 30 | D100: 46 | E100: 1.533333333 | F100: 1200.8 | G100: 36024 | S100: 55 | T100: 0 | U100: 55 | V100: 25 | W100: 110 | X100: 2 | Y100: 2280 | Z100: 125400
A101: Oxgangs PS | B101: Firrhill | C101: 50 | D101: 87 | E101: 1.74 | F101: 1200.8 | G101: 60040 | S101: 50 | T101: 0 | U101: 50 | V101: 0 | W101: 50 | X101: 1 | Y101: 1140 | Z101: 57000
A102: Pentland PS | B102: Firrhill | C102: 50 | D102: 77 | E102: 1.54 | F102: 1200.8 | G102: 60040 | S102: 48 | T102: 0 | U102: 48 | V102: -2 | W102: 48 | X102: 1 | Y102: 1140 | Z102: 54720
A103: Braidburn | B103: Firrhill | C103: 8 | D103: 8 | E103: 1 | F103: 1200.8 | G103: 9606.4 | S103: 8 | T103: 0 | U103: 8 | V103: 0 | W103: 8 | X103: 1 | Y103: 1140 | Z103: 9120
A104: Broomhouse PS | B104: Forrester | C104: 30 | D104: 59 | E104: 1.966666667 | F104: 1200.8 | G104: 36024 | S104: 32 | T104: 0 | U104: 32 | V104: 2 | W104: 32 | X104: 1 | Y104: 1140 | Z104: 36480
A105: Murrayburn PS | B105: Forrester | C105: 30 | D105: 54 | E105: 1.8 | F105: 1200.8 | G105: 36024 | S105: 32 | T105: 0 | U105: 32 | V105: 2 | W105: 32 | X105: 1 | Y105: 1140 | Z105: 36480
A106: Gylemuir PS | B106: Forrester | C106: 75 | D106: 130 | E106: 1.733333333 | F106: 1200.8 | G106: 90060 | S106: 71 | T106: 0 | U106: 71 | V106: -4 | W106: 71 | X106: 1 | Y106: 1140 | Z106: 80940
A107: St Joseph's RC PS | B107: Forrester | C107: 38 | D107: 75 | E107: 1.973684211 | F107: 1200.8 | G107: 45630.4 | S107: 40 | T107: 0 | U107: 40 | V107: 2 | W107: 40 | X107: 1 | Y107: 1140 | Z107: 45600
A108: Gracemount PS | B108: Gracemount | C108: 50 | D108: 91 | E108: 1.82 | F108: 1200.8 | G108: 60040 | S108: 52 | T108: 0 | U108: 52 | V108: 2 | W108: 52 | X108: 1 | Y108: 1140 | Z108: 59280
A109: St Catherine's RC PS | B109: Gracemount | C109: 20 | D109: 39 | E109: 1.95 | F109: 1200.8 | G109: 24016 | S109: 24 | T109: 0 | U109: 24 | V109: 4 | W109: 24 | X109: 1 | Y109: 1140 | Z109: 27360
A110: Cowgate Under 5's | B110: James Gillespie's | C110: 42 | D110: 53 | E110: 1.261904762 | F110: 1852.5 | G110: 77805 | S110: 42 | T110: 0 | U110: 42 | V110: 0 | W110: 84 | X110: 2 | Y110: 2280 | Z110: 95760
A111: James Gillespie's PS | B111: James Gillespie's | C111: 40 | D111: 76 | E111: 1.9 | F111: 1200.8 | G111: 48032 | S111: 40 | T111: 0 | U111: 40 | V111: 0 | W111: 40 | X111: 1 | Y111: 1140 | Z111: 45600
A112: Royal Mile PS | B112: James Gillespie's | C112: 60 | D112: 42 | E112: 0.7 | F112: 1200.8 | G112: 72048 | S112: 60 | T112: 0 | U112: 60 | V112: 0 | W112: 60 | X112: 1 | Y112: 1140 | Z112: 68400
A113: Tollcross EYC | B113: James Gillespie's | C113: 70 | D113: 72 | E113: 1.028571429 | F113: 1580 | G113: 110600 | S113: 72 | T113: 0 | U113: 72 | V113: 2 | W113: 112 | X113: 1.555555556 | Y113: 1779 | Z113: 128088
A114: Craigentinny EYC | B114: Leith | C114: 30 | D114: 34 | E114: 1.133333333 | F114: 1580 | G114: 47400 | S114: 30 | T114: 0 | U114: 30 | V114: 0 | W114: 30 | X114: 1 | Y114: 1140 | Z114: 34200
A115: Hermitage Park PS | B115: Leith | C115: 30 | D115: 57 | E115: 1.9 | F115: 1200.8 | G115: 36024 | S115: 24 | T115: 0 | U115: 24 | V115: -6 | W115: 24 | X115: 1 | Y115: 1140 | Z115: 27360
A116: Leith PS | B116: Leith | C116: 30 | D116: 57 | E116: 1.9 | F116: 1200.8 | G116: 36024 | S116: 55 | T116: 0 | U116: 55 | V116: 25 | W116: 55 | X116: 1 | Y116: 1140 | Z116: 62700
A117: Lorne PS | B117: Leith | C117: 20 | D117: 38 | E117: 1.9 | F117: 1200.8 | G117: 24016 | S117: 24 | T117: 0 | U117: 24 | V117: 4 | W117: 24 | X117: 1 | Y117: 1140 | Z117: 27360
A118: St Mary's RC PS | B118: Leith | C118: 30 | D118: 55 | E118: 1.833333333 | F118: 1200.8 | G118: 36024 | S118: 32 | T118: 0 | U118: 32 | V118: 2 | W118: 32 | X118: 1 | Y118: 1140 | Z118: 36480
A119: St Ninian's RC PS | B119: Leith | C119: 30 | D119: 58 | E119: 1.933333333 | F119: 1200.8 | G119: 36024 | S119: 32 | T119: 0 | U119: 32 | V119: 2 | W119: 32 | X119: 1 | Y119: 1140 | Z119: 36480
A120: Cameron House NS | B120: Liberton | C120: 20 | D120: 44 | E120: 2.2 | F120: 1200.8 | G120: 24016 | S120: 25 | T120: 0 | U120: 25 | V120: 5 | W120: 25 | X120: 1 | Y120: 1140 | Z120: 28500
A121: Craigour Park PS | B121: Liberton | C121: 50 | D121: 94 | E121: 1.88 | F121: 1200.8 | G121: 60040 | S121: 48 | T121: 0 | U121: 48 | V121: -2 | W121: 48 | X121: 1 | Y121: 1140 | Z121: 54720
A122: Liberton PS | B122: Liberton | C122: 25 | D122: 43 | E122: 1.72 | F122: 1200.8 | G122: 30020 | S122: 24 | T122: 0 | U122: 24 | V122: -1 | W122: 24 | X122: 1 | Y122: 1140 | Z122: 27360
A123: Liberton NS | B123: Liberton | C123: 50 | D123: 99 | E123: 1.98 | F123: 1200.8 | G123: 60040 | S123: 48 | T123: 0 | U123: 48 | V123: -2 | W123: 96 | X123: 2 | Y123: 2280 | Z123: 109440
A124: Spinney Lane | B124: Liberton | C124: 60 | D124: 131 | E124: 2.183333333 | G124: 0 | S124: 64 | T124: 0 | U124: 64 | V124: 4 | W124: 64 | X124: 1 | Y124: 1140 | Z124: 72960
A125: Duddingston PS | B125: Portobello | C125: 60 | D125: 97 | E125: 1.616666667 | F125: 1200.8 | G125: 72048 | S125: 64 | T125: 0 | U125: 64 | V125: 4 | W125: 64 | X125: 1 | Y125: 1140 | Z125: 72960
A126: Parsons Green PS | B126: Portobello | C126: 30 | D126: 45 | E126: 1.5 | F126: 1200.8 | G126: 36024 | S126: 32 | T126: 0 | U126: 32 | V126: 2 | W126: 32 | X126: 1 | Y126: 1140 | Z126: 36480
A127: St John's RC PS | B127: Portobello | C127: 40 | D127: 64 | E127: 1.6 | F127: 1200.8 | G127: 48032 | S127: 55 | T127: 0 | U127: 55 | V127: 15 | W127: 55 | X127: 1 | Y127: 1140 | Z127: 62700
A128: Towerbank PS | B128: Portobello | C128: 40 | D128: 73 | E128: 1.825 | F128: 1200.8 | G128: 48032 | S128: 40 | T128: 0 | U128: 40 | V128: 0 | W128: 40 | X128: 1 | Y128: 1140 | Z128: 45600
A129: Queensferry PS | B129: Queensferry | C129: 50 | D129: 98 | E129: 1.96 | F129: 1200.8 | G129: 60040 | S129: 56 | T129: 0 | U129: 56 | V129: 6 | W129: 56 | X129: 1 | Y129: 1140 | Z129: 63840
A130: Queensferry EYC | B130: Queensferry | C130: 30 | D130: 28 | E130: 0.9333333333 | F130: 1580 | G130: 47400 | S130: 30 | T130: 0 | U130: 30 | V130: 0 | W130: 60 | X130: 2 | Y130: 2280 | Z130: 68400
A131: Clermiston PS | B131: The Royal High | C131: 40 | D131: 73 | E131: 1.825 | F131: 1200.8 | G131: 48032 | S131: 40 | T131: 0 | U131: 40 | V131: 0 | W131: 40 | X131: 1 | Y131: 1140 | Z131: 45600
A132: Cramond PS | B132: The Royal High | C132: 50 | D132: 95 | E132: 1.9 | F132: 1200.8 | G132: 60040 | S132: 48 | T132: 0 | U132: 48 | V132: -2 | W132: 48 | X132: 1 | Y132: 1140 | Z132: 54720
A133: Davidson's Mains PS | B133: The Royal High | C133: 40 | D133: 79 | E133: 1.975 | F133: 1200.8 | G133: 48032 | S133: 79 | T133: 0 | U133: 79 | V133: 39 | W133: 119 | X133: 1.506329114 | Y133: 1849 | Z133: 146071
A134: Holy Cross RC PS | B134: Trinity | C134: 40 | D134: 78 | E134: 1.95 | F134: 1200.8 | G134: 48032 | S134: 40 | T134: 0 | U134: 40 | V134: 0 | W134: 40 | X134: 1 | Y134: 1140 | Z134: 45600
A135: Fort EYC | B135: Trinity | C135: 90 | D135: 139 | E135: 1.544444444 | F135: 1200.8 | G135: 108072 | S135: 94 | T135: 0 | U135: 94 | V135: 4 | W135: 164 | X135: 1.744680851 | Y135: 1983 | Z135: 186402
A136: Wardie PS | B136: Trinity | C136: 40 | D136: 64 | E136: 1.6 | F136: 1200.8 | G136: 48032 | S136: 40 | T136: 0 | U136: 40 | V136: 0 | W136: 40 | X136: 1 | Y136: 1400 | Z136: 56000
A137: Balgreen NS | B137: Tynecastle | C137: 60 | D137: 67 | E137: 1.116666667 | F137: 1200.8 | G137: 72048 | S137: 64 | T137: 0 | U137: 64 | V137: 4 | W137: 104 | X137: 1.625 | Y137: 1858 | Z137: 118912
A138: Craiglockhart PS | B138: Tynecastle | C138: 20 | D138: 38 | E138: 1.9 | F138: 1200.8 | G138: 24016 | S138: 24 | T138: 0 | U138: 24 | V138: 4 | W138: 24 | X138: 1 | Y138: 1140 | Z138: 27360
A139: Dalry PS | B139: Tynecastle | C139: 60 | D139: 74 | E139: 1.233333333 | F139: 1200.8 | G139: 72048 | S139: 64 | T139: 0 | U139: 64 | V139: 4 | W139: 64 | X139: 1 | Y139: 1140 | Z139: 72960
A140: Stenhouse PS | B140: Tynecastle | C140: 40 | D140: 79 | E140: 1.975 | F140: 1200.8 | G140: 48032 | S140: 40 | T140: 0 | U140: 40 | V140: 0 | W140: 40 | X140: 1 | Y140: 1140 | Z140: 45600
A141: Stenhouse EYC | B141: Tynecastle | C141: 30 | D141: 18 | E141: 0.6 | F141: 1580 | G141: 47400 | S141: 30 | T141: 0 | U141: 30 | V141: 0 | W141: 60 | X141: 2 | Y141: 2280 | Z141: 68400
A142: Tynecastle NS | B142: Tynecastle | C142: 40 | D142: 72 | E142: 1.8 | F142: 1200.8 | G142: 48032 | S142: 55 | T142: 0 | U142: 55 | V142: 15 | W142: 110 | X142: 2 | Y142: 2280 | Z142: 125400
A143: Hailesland EYC | B143: WHEC | C143: 38 | D143: 52 | E143: 1.368421053 | F143: 1580 | G143: 60040 | S143: 44 | T143: 0 | U143: 44 | V143: 6 | W143: 88 | X143: 2 | Y143: 2280 | Z143: 100320
A144: Sighthill EYC | B144: WHEC | C144: 30 | D144: 27 | E144: 0.9 | F144: 1580 | G144: 47400 | S144: 30 | T144: 0 | U144: 30 | V144: 0 | W144: 30 | X144: 1 | Y144: 1140 | Z144: 34200
G145: 0 | U145: 0 | V145: 0 | Z145: 0
A147: Other Non Settings Related Capital Works
A148: Example K | H148: Catering provision to accommodate universal free lunch commitment | Q148: 500000
A149: Example L | H149: Systems costs (Capital in nature) | Q149: 100000
H150: Catering equipment | Q150: 90000
H151: Refurbishment / reinstatement of production kitchens | Q151: 520000
P159: Anticipated Total Capital Cost for All Projects | Q159: 39386635.1
B160: Totals | C160: 4096 | D160: 6750 | E160: 1.647949219 | G160: 5101320.2 | R160: Totals | S160: 6003 | T160: 410 | U160: 6413 | V160: 2317 | W160: 8635 | X160: 1.346483705 | Z160: 9890148 | AA160: NB: Please ensure totals exclude examples
V161: Increase from Pre Works | W161: 1885 | Z161: 4788827.8
C162: Cross check to Input Table | D162: 11051.9452 | V162: Cross check to Input Table | W162: 11439.545
D163: Check | W163: Check

Sheet Analysis (hidden)
E2: 2016-17 | F2: 2017-18 | G2: 2018-19 | H2: 2019-20 | I2: 2020-21 | J2: 2021-22 | L2: % Change
C3: Input
D4: No. Of Lunches: | E4: 0 | F4: 190000 | G4: 427500 | H4: 950000 | I4: 2067770 | J4: 1870451.2
D5: Total Population: | E5: 22013 | F5: 21928 | G5: 21547 | H5: 21357 | I5: 21303 | J5: 21463 | L5: -0.024985236
D6: Total Uptake: | E6: 11051.9452 | F6: 11026.6552 | G6: 10901.765 | H6: 10990.66 | I6: 11289.21 | J6: 11439.545 | L6: 0.03507073126
D7: No. Students in LA: | E7: 7225.37416 | F7: 7112.99196 | G7: 7046.5452 | H7: 7150.4512 | I7: 7389.1676 | J7: 7488.1702 | L7: 0.03637127077
D9: LA Provision 2YO | E9: 0.8 | F9: 0.8 | G9: 0.8 | H9: 0.8 | I9: 0.8 | J9: 0.8
D10: PP Provision 2YO | E10: 0.2 | F10: 0.19 | G10: 0.19 | H10: 0.19 | I10: 0.19 | J10: 0.19
D11: CM Provision 2YO | E11: 0 | F11: 0.01 | G11: 0.01 | H11: 0.01 | I11: 0.01 | J11: 0.01
D13: LA Provision 34YO | E13: 0.65 | F13: 0.64 | G13: 0.64 | H13: 0.64 | I13: 0.64 | J13: 0.64
D14: PP Provision 34YO | E14: 0.35 | F14: 0.35 | G14: 0.35 | H14: 0.35 | I14: 0.35 | J14: 0.35
D15: CM Provision 34YO | E15: 0 | F15: 0.01 | G15: 0.01 | H15: 0.01 | I15: 0.01 | J15: 0.01
D17: LA Provision 5YO | E17: 0.6 | F17: 0.6 | G17: 0.6 | H17: 0.6 | I17: 0.6 | J17: 0.6
D18: PP Provision 5YO | E18: 0.4 | F18: 0.39 | G18: 0.39 | H18: 0.39 | I18: 0.39 | J18: 0.39
D19: CM Provision 5YO | E19: 0 | F19: 0.01 | G19: 0.01 | H19: 0.01 | I19: 0.01 | J19: 0.01
D21: Total Statutory Hours (All Settings) | E21: 5986497.12 | F21: 5976120.12 | G21: 5919087 | H21: 5979444 | I21: 9937068 | J21: 11837104.5 | L21: 0.9773006255
D22: Total Phased Hours (All Settings) | E22: 237060 | F22: 791880 | G22: 1517265 | H22: 2976060 | I22: 2796855 | J22: 0
D23: % of total hours phased | E23: 25.25308833 | F23: 7.546749659 | G23: 3.901155698 | H23: 2.009181267 | I23: 3.552943574
D24: Total Hours (LA Settings) | E24: 4058424.996 | F24: 4367904.456 | G24: 4825949.04 | H24: 5852677.44 | I24: 8482461.324 | J24: 7765968.876 | L24: 0.9135425402
D25: Total Hours (PP) | E25: 2165132.124 | F25: 2332415.663 | G25: 2536039.44 | H25: 3013271.52 | I25: 4124122.446 | J25: 3952764.579 | L25: 0.8256458972
D26: Stat Hours (LA Settings) | E26: 3916188.996 | F26: 3858276.456 | G26: 3829865.04 | H26: 3896701.44 | I26: 6518874.524 | J26: 7765968.876 | L26: 0.9830424129
D27: 2YO Hours in LA Settings | E27: 207760.896 | F27: 287246.496 | G27: 437248.8 | H27: 707971.2 | I27: 1764903.36 | J27: 1051827.84 | L27: 4.062684366
D28: 2YO ASN Hours | E28: 37396.96128 | F28: 51704.36928 | G28: 78704.784 | H28: 127434.816 | I28: 317682.6048 | J28: 189329.0112
D29: 2YO Non-ASN Hours | E29: 170363.9347 | F29: 235542.1267 | G29: 358544.016 | H29: 580536.384 | I29: 1447220.755 | J29: 862498.8288 | L29: 4.062684366
D30: 3,4 Hours | E30: 3540556.5 | F30: 4080657.96 | G30: 4388700.24 | H30: 5144706.24 | I30: 6717557.964 | J30: 6714141.036 | L30: 0.8963518972
D31: 3,4 ASN Hours | E31: 637300.17 | F31: 734518.4328 | G31: 789966.0432 | H31: 926047.1232 | I31: 1209160.434 | J31: 1208545.386
D32: 3,4 Non-ASN Hours | E32: 2903256.33 | F32: 3346139.527 | G32: 3598734.197 | H32: 4218659.117 | I32: 5508397.53 | J32: 5505595.65 | L32: 0.8963518972
D33: 5 Hours | E33: 310107.6 | F33: 315973.8 | G33: 311490 | H33: 306590.4 | I33: 303451.02 | J33: 302153.58
D34: 5 ASN Hours | E34: 55819.368 | F34: 56875.284 | G34: 56068.2 | H34: 55186.272 | I34: 54621.1836 | J34: 54387.6444
D35: 5 Non-ASN Hours | E35: 254288.232 | F35: 259098.516 | G35: 255421.8 | H35: 251404.128 | I35: 248829.8364 | J35: 247765.9356
D37: Percentage of Children Receiving Phased Entitlement | E37: 0.03972151436 | F37: 0.1430170774 | G37: 0.2798629396 | H37: 0.5519231784 | I37: 1.10202574 | J37: 0
D38: Percentage of Total Population With ASN | E38: 0.18 | F38: 0.18 | G38: 0.18 | H38: 0.18 | I38: 0.18 | J38: 0.18
D40: Nursery Rate 2YO | E40: 3.6 | F40: 3.67 | G40: 3.77 | H40: 4.13 | I40: 4.97 | J40: 5.31 | L40: 0.475
D41: Nursery Rate 3YO | E41: 3.6 | F41: 3.67 | G41: 3.77 | H41: 4.13 | I41: 4.97 | J41: 5.31 | L41: 0.475
C44: Staffing
D45: No FTE Staff: | E45: 667.8606764 | F45: 773.4796778 | G45: 943.191177 | H45: 1031.164854 | I45: 1335.705861 | J45: 1496.018045 | L45: 1.240015168
D46: Minimum Required Hours | E46: 579855.4186 | F46: 673276.7139 | G46: 748920.0794 | H46: 913590.1334 | I46: 1367748.097 | J46: 1207366.24 | L46: 1.082184976
D47: Total Proposed Ratio Committed Staff Hours | E47: 959208.9 | F47: 1052002.915 | G47: 1137350.527 | H47: 1190956.401 | I47: 1483012.955 | J47: 1647728.624 | L47: 0.7177995575
D48: Implied Staff hours:Child Hours ratio | E48: 4.231012656 | F48: 4.151988928 | G48: 4.243150133 | H48: 4.91426675 | I48: 5.719748635 | J48: 4.713135866 | L48: 0.1139498388
D49: Total FTE (52/35) Ratio Committed Staff | E49: 527.0378571 | F49: 578.0235797 | G49: 624.917872 | H49: 654.3716486 | I49: 814.8422829 | J49: 905.3453978
C50: Staff Hours
D51: p | E51: 669164.8043 | F51: 829520.8891 | G51: 1049713.559 | H51: 1167924.162 | I51: 1572036.679 | J51: 1802595.726 | L51: 1.693799366
D52: m | E52: 26769.6 | F52: 29250 | G52: 29367 | H52: 29016 | I52: 25506 | J52: 23400 | L52: -0.1258741259
D53: s | E53: 105787.5 | F53: 111588.75 | G53: 157798.875 | H53: 165664.6875 | I53: 178717.5 | J53: 184860 | L53: 0.7474654378
D54: a | E54: 79636.77764 | F54: 79636.77764 | G54: 85924.8 | H54: 91728 | I54: 133286.4 | J54: 134596.8 | L54: 0.6901336792
D57: Ratio Committed staff Output | E57: 7597.201415 | F57: 7467.518235 | G57: 7634.992613 | H57: 8840.78949 | I57: 10340.17023 | J57: 8539.221753 | L57: 0.123995704
D58: Child: staff Ratio | E58: 13.52559745 | F58: 12.16061333 | G58: 11.14813275 | H58: 10.80114776 | I58: 9.007438755 | J58: 8.233762829 | L58: -0.3912459056
C61: Revenue
D62: Total Revenue | E62: 29953991.65 | F62: 34599446.7 | G62: 42081938.06 | H62: 50228848.68 | I62: 71494029.98 | J62: 76313616.41 | L62: 1.547694388
D63: Staff Expenditure | E63: 22641275.64 | F63: 25427961.75 | G63: 30269163.6 | H63: 32776079.52 | I63: 40920583 | J63: 45220730.76 | L63: 0.9972695655
D64: Staff Expenditure (% OF total) | E64: 0.7558683966 | F64: 0.7349239417 | G64: 0.719291102 | H64: 0.6525349551 | I64: 0.5723636367 | J64: 0.5925643796
D65: Ratio Committed Staff Expenditure | E65: 17309364.2 | F65: 18871654.03 | G65: 20324426.94 | H65: 21279834.09 | I65: 26190486.02 | J65: 28944026.07 | L65: 0.6721599786
D66: Ratio Committed Staff Expenditure (of Total Staff Expenditure) | E66: 0.764504813 | F66: 0.742161492 | G66: 0.6714565096 | H66: 0.6492489157 | I66: 0.6400320841 | J66: 0.6400609982
D67: PP Cost | E67: 7794475.65 | F67: 8878061.49 | G67: 9910377.23 | H67: 12902437.63 | I67: 21173059.87 | J67: 21617730.16 | L67: 1.773468176
D68: PP Cost (% Of total) | E68: 0.2602149236 | F68: 0.2565954758 | G68: 0.2355019205 | H68: 0.2568730514 | I68: 0.2961514392 | J68: 0.2832748751
D69: Lunch | E69: 0 | F69: 570000 | G69: 1282500 | H69: 2850000 | I69: 6203310 | J69: 5611353.6
D70: lunch Cost (% of total) | E70: 0 | F70: 0.01647425188 | G70: 0.03047625797 | H70: 0.05674030114 | I70: 0.08676682517 | J70: 0.0735301754
D71: Running | E71: -481759.64 | F71: -276576.54 | G71: 619897.23 | H71: 1700331.52 | I71: 3197077.12 | J71: 3863801.89
D72: Running Costs (% of Total) | E72: -0.01608332023 | F72: -0.007993669448 | G72: 0.01473071961 | H72: 0.0338516921 | I72: 0.04471809913 | J72: 0.0506305699
D75: Cost Per child (all settings) | E75: 2710.29 | F75: 3137.8 | G75: 3860.1 | H75: 4570.14 | I75: 6332.95 | J75: 6671.04 | L75: 1.461374982
D76: Cost per Child (LA Settings) | E76: 3066.9 | F76: 3535.98 | G76: 4383.58 | H76: 4821.57 | I76: 5970.59 | J76: 6554.94 | L76: 1.137317813
D77: Staff Cost per Child (LA Settings) | E77: 2956.6 | F77: 3390.33 | G77: 4019.52 | H77: 4257.68 | I77: 5207.5 | J77: 5706.33 | L77: 0.9300311168
D78: Unit Cost (LA Settings) | E78: 5.46 | F78: 5.76 | G78: 6.4 | H78: 5.89 | I78: 5.2 | J78: 6.32 | L78: 0.1575091575
D79: staff Unit Cost (LA Settings) | E79: 5.58 | F79: 5.82 | G79: 6.27 | H79: 5.6 | I79: 4.82 | J79: 5.82 | L79: 0.04301075269
D80: Average Unit Cost of Ratio Committed Staff | E80: 32402.4 | F80: 32263.62 | G80: 32154.68 | H80: 32144.35 | I80: 31926.36 | J80: 31825.97 | L80: -0.01778973162
D81: Average Unit Cost of Central Staff | E81: 54731.96 | F81: 54731.96 | G81: 46900.93 | H81: 44507.46 | I81: 44507.46 | J81: 44507.46 | L81: -0.1868104121
C83: Average Unit Cost of Ratio Committed Staff
D84: p | E84: 27769.83 | F84: 27769.83 | G84: 27769.83 | H84: 27769.83 | I84: 27769.83 | J84: 27769.83 | L84: 0
D85: m | E85: 51760 | F85: 51760 | G85: 51760 | H85: 51760 | I85: 51760 | J85: 51760 | L85: 0
D86: s | E86: 43148 | F86: 43148 | G86: 43148 | H86: 43148 | I86: 43148 | J86: 43148 | L86: 0
D87: a | E87: 23528.89 | F87: 23528.89 | G87: 23528.89 | H87: 23528.89 | I87: 23528.89 | J87: 23528.89 | L87: 0
C90: Capital
D91: Additional Capacity Proposed: | E91: 1907
D92: Additional Capacity Proposed (% Increase)
D94: AC of 1 Capacity Place | E94: 20653.71531
E96: Current | F96: Proposed
D97: Max Deliverable Hours | E97: 5101320.2 | F97: 9890148
D98: Actual ELC Hours Delivered | E98: 4058424.996 | F98: 7765968.876
D100: Utilisation | E100: 0.7955636653 | F100: 0.7852227162
